{"text_format":"1","workbook":"xlsx","n_sheets":2,"sheets":["PA 2018_INSTITUCIONAL","PA 2018_REGIONAL"],"not_rendered":{"charts":0,"images":1,"macros":1,"external_links":0,"defined_names":6,"comments":1,"pivot_tables":0},"unopened":[],"bounds":{"document_bytes":16777216,"sheet_cells":100000,"rows_first":2000,"rows_last":500,"rows_between":2000,"halvings":0,"cell_chars":16384,"cell_head_chars":4096},"cells_cut":0,"cells_raw":0,"read":"whole","date_system":"1900"}

{"sheet":"PA 2018_INSTITUCIONAL","index":0,"n_rows":150,"n_cols":23,"rows_kept":150,"cut":false,"hidden":false,"merged":[[74,1,78,1],[74,2,78,2],[74,3,78,3],[65,4,66,4],[65,3,66,3],[67,1,69,1],[67,2,69,2],[67,3,69,3],[67,4,69,4],[63,1,66,1],[63,2,66,2],[63,4,64,4],[25,3,28,3],[21,3,24,3],[46,3,62,3],[53,4,56,4],[58,4,60,4],[42,4,43,4],[46,2,62,2],[46,1,62,1],[37,1,41,1],[37,2,41,2],[37,3,41,3],[42,1,43,1],[42,2,43,2],[44,1,45,1],[44,2,45,2],[44,3,45,3],[8,4,17,4],[18,4,28,4],[29,1,36,1],[29,2,36,2],[29,3,30,3],[29,4,36,4],[10,3,11,3],[12,3,14,3],[15,3,16,3],[18,1,28,1],[18,2,28,2],[18,3,20,3],[8,1,17,1],[31,3,34,3],[8,2,17,2],[8,3,9,3],[6,9,6,12],[6,13,6,16],[6,17,6,20],[1,1,4,2],[1,3,4,21],[75,9,75,12],[74,9,74,12],[73,7,73,12],[37,4,38,4],[39,4,41,4],[44,4,45,4],[46,4,52,4],[61,4,62,4],[80,9,80,12],[79,9,79,12],[78,9,78,12],[77,9,77,12],[76,9,76,12]]}
[]
[null,null,null,"AUTORIDAD NACIONAL DE ACUICULTURA Y PESCA\nPLAN DE ACCIÓN INSTITUCIONAL 2018",null,null,null,null,null,null,null,null,null,null,null,null,null,null,null,null,null,null,"Código: PL-DE-001"]
[null,null,null,null,null,null,null,null,null,null,null,null,null,null,null,null,null,null,null,null,null,null,"Versión: 2"]
[null,null,null,null,null,null,null,null,null,null,null,null,null,null,null,null,null,null,null,null,null,null,"Fecha: Agosto 31 de 2018"]
[null,null,null,null,null,null,null,null,null,null,null,null,null,null,null,null,null,null,null,null,null,null,"Página: 1 de 1"]
[]
[null,null,null,null,null,null,null,null,null,"INDICADOR",null,null,null,"META GLOBAL",null,null,null,"PROGRAMACIÓN DE LA META"]
[null,"OBJETIVOS ESTRATÉGICO","FOCO ANUAL","LÍNEA DE ACCIÓN","PROCESO ASOCIADO","FILTRO","DIMENSIONES DEL MIPG","ID. ACT.","ACTIVIDAD","ID. IND.","NOMBRE","FORMULA","CATEGORÍA","MAGNITUD PROGRAMADA","UNIDAD DE MEDIDA","TIPO DE ANUALIZACIÓN","PERIODICIDAD DE MEDICIÓN","I TRI","II TRI","III TRI","IV TRI","NOMBRE DEL ÁREA RESPONSABLE","RECURSOS REQUERIDOS"]
[null,"1.  Lograr el aprovechamiento eficiente y sostenible de los recursos pesqueros y el desarrollo de la acuicultura en el territorio nacional","Desarrollo del conocimiento para el aprovechamiento eficiente y sostenible de los recursos pesqueros y  de la acuicultura  a nivel Nacional ","Desarrollar tecnologías para la optimización del rendimiento de la acuicultura y la pesca de manera sostenible en todo el territorio nacional","GESTIÓN DE LA INFORMACIÓN Y GENERACIÓN DEL CONOCIMIENTO ","GESTIÓN DE LA INFORMACIÓN Y GENERACIÓN DEL CONOCIMIENTO ","6. GESTIÓN DEL CONOCIMIENTO Y LA INNOVACIÓN",1,"Producir y publicar documentos técnicos  sobre  optimización del rendimiento de la acuicultura y la pesca sostenible en el país.",{"$f":"CONCATENATE(H9,\".\",1)","v":"1.1"},"Documentos técnicos producidos y publicados",null,"Eficacia",1,"Documento técnicos","Incremental","Trimestral",0.15,0.5,0.75,1,"OFICINA DE GENERACIÓN DEL CONOCIMIENTO Y LA INFORMACIÓN","Humanos, Físicos, Financieros, Tecnológicos"]
[null,null,null,null,null,"GESTIÓN DE LA INFORMACIÓN Y GENERACIÓN DEL CONOCIMIENTO ","6. GESTIÓN DEL CONOCIMIENTO Y LA INNOVACIÓN",2,"Realizar ensayos, experimentos o pruebas científicas para el mejoramiento de la calidad y eficiencia en la reproducción, larvicultura, cultivo, sanidad y procesamiento, de especies comerciales;  y/o evaluar el potencial acuícola de nuevas especies nativas avanzando en el desarrollo de paquetes tecnológicos, a través de alianzas estratégicas.",{"$f":"CONCATENATE(H10,\".\",1)","v":"2.1"},"Investigaciones realizadas para el mejoramiento de procesos productivos en especies comerciales y en especies nativas con potencial acuícola para el desarrollo de tecnologías en la reproducción, larvicultura, cultivo y sanidad de las mismas",null,"Eficacia",8,"Investigaciones","Incremental","Trimestral",0.15,0.5,0.75,1,"OFICINA DE GENERACIÓN DEL CONOCIMIENTO Y LA INFORMACIÓN","Humanos, Físicos, Financieros, Tecnológicos"]
[null,null,null,"Aportar al conocimiento de la dinámica social y económica de pescadores y acuicultores que permita dar lineamientos de administración y manejo a los recursos a nivel nacional",null,"GESTIÓN DE LA INFORMACIÓN Y GENERACIÓN DEL CONOCIMIENTO ","6. GESTIÓN DEL CONOCIMIENTO Y LA INNOVACIÓN",3,"Generación de líneas  base a través de trabajo con la comunidad y con las fuentes primarias y secundarias de información que aporten a la determinación de indicadores socioculturales y económicos  que describan el estado de la actividad pesquera y acuícola, a través de alianzas estratégicas.","3.1","Investigaciones sociales y económicas realizadas de la dinámica de trabajo de pescadores y acuicultores a nivel nacional ",null,"Eficacia",1,"Investigaciones","Incremental","Trimestral",0.15,0.5,0.75,1,"OFICINA DE GENERACIÓN DEL CONOCIMIENTO Y LA INFORMACIÓN","Humanos, Físicos, Financieros, Tecnológicos"]
[null,null,null,null,null,"GESTIÓN DE LA INFORMACIÓN Y GENERACIÓN DEL CONOCIMIENTO ","6. GESTIÓN DEL CONOCIMIENTO Y LA INNOVACIÓN",4,"Producir y publicar documentos técnicos","4.1","Documentos técnicos publicados",null,"Eficacia",1,"Documento","Incremental","Trimestral",0.15,0.5,0.75,1,"OFICINA DE GENERACIÓN DEL CONOCIMIENTO Y LA INFORMACIÓN","Humanos, Físicos, Financieros, Tecnológicos"]
[null,null,null,"Evaluar y actualizar el estado, esfuerzo y dinámica de los recursos pesqueros y/0 las pesquerías en el territorio nacional para el manejo y administración sostenible",null,"GESTIÓN DE LA INFORMACIÓN Y GENERACIÓN DEL CONOCIMIENTO ","6. GESTIÓN DEL CONOCIMIENTO Y LA INNOVACIÓN",5,"Obtener información técnica y científica sobre capturas objetivo e incidentales de las diferentes pesquerías del país, mediante el monitoreo a bordo y en puerto dependiendo de la escala de la pesca, a través de alianzas estratégicas.","5.1","Bases de datos consolidadas generadas a partir de la información recopilada a nivel nacional.",null,"Eficacia",1,"Bases de datos","Incremental","Trimestral",0.15,0.5,0.75,1,"OFICINA DE GENERACIÓN DEL CONOCIMIENTO Y LA INFORMACIÓN","Humanos, Físicos, Financieros, Tecnológicos"]
[null,null,null,null,null,"GESTIÓN DE LA INFORMACIÓN Y GENERACIÓN DEL CONOCIMIENTO ","6. GESTIÓN DEL CONOCIMIENTO Y LA INNOVACIÓN",6,"Producir y publicar manuscritos, publicaciones, bases de datos y/o documentos técnicos.","6.1","Documentos técnicos producidos y publicados",null,"Eficacia",1,"Documento","Incremental","Trimestral",0.15,0.5,0.75,1,"OFICINA DE GENERACIÓN DEL CONOCIMIENTO Y LA INFORMACIÓN","Humanos, Físicos, Financieros, Tecnológicos"]
[null,null,null,null,null,"GESTIÓN DE LA INFORMACIÓN Y GENERACIÓN DEL CONOCIMIENTO ","6. GESTIÓN DEL CONOCIMIENTO Y LA INNOVACIÓN",7,"Analizar y modelar la información histórica y reciente que presente el estado de los recursos, con tecnologías tradicionales y recientes, que incluya la descripción de la dinámica pesquera, caracterización y estandarización del esfuerzo pesquero y censos preliminares de la flota pesquera para la determinación del estado de los recursos, principales indicadores para el seguimiento de las poblaciones y/o pesquerías, y las cuotas de pesca","7.1","Estudios integrales e investigaciones realizadas en biología pesquera y de la historia de vida de los recursos pesqueros a nivel nacional",null,"Eficiencia",6,"Estudios integrales e investigaciones","Incremental","Trimestral",0.15,0.5,0.75,1,"OFICINA DE GENERACIÓN DEL CONOCIMIENTO Y LA INFORMACIÓN","Humanos, Físicos, Financieros, Tecnológicos"]
[null,null,null,"Establecer el potencial de aprovechamiento de recursos pesqueros y de la acuicultura independientemente de la actividad, para buscar alternativas de aprovechamiento y desarrollo del subsector a nivel nacional",null,"GESTIÓN DE LA INFORMACIÓN Y GENERACIÓN DEL CONOCIMIENTO ","6. GESTIÓN DEL CONOCIMIENTO Y LA INNOVACIÓN",8,"Producir y publicar manuscritos, publicaciones, bases de datos y/o documentos técnicos.","8.1","Documentos técnicos producidos y publicados",null,"Eficacia",1,"Documento","Incremental","Trimestral",0.15,0.5,0.75,1,"OFICINA DE GENERACIÓN DEL CONOCIMIENTO Y LA INFORMACIÓN","Humanos, Físicos, Financieros, Tecnológicos"]
[null,null,null,null,null,"GESTIÓN DE LA INFORMACIÓN Y GENERACIÓN DEL CONOCIMIENTO ","6. GESTIÓN DEL CONOCIMIENTO Y LA INNOVACIÓN",9,"Realizar cruceros de investigación científica independientes de la pesquería.","9.1","Estudios de prospección pesquera realizados en recursos pelágicos y/o demersales.",null,"Eficacia",2,"Estudios de prospección","Incremental","Trimestral",0.15,0.5,0.75,1,"OFICINA DE GENERACIÓN DEL CONOCIMIENTO Y LA INFORMACIÓN","Humanos, Físicos, Financieros, Tecnológicos"]
[null,null,null,"Desarrollar e implementar herramientas tecnológicas de información y la comunicación para el conocimiento y seguimiento del recurso pesquero y de la acuicultura",null,"GESTIÓN DE LA INFORMACIÓN Y GENERACIÓN DEL CONOCIMIENTO ","6. GESTIÓN DEL CONOCIMIENTO Y LA INNOVACIÓN",10,"Fortalecer los sistemas TIC's de entidad","10.1","Sistemas de información fortalecidos",null,"Eficacia",10,"Herramienta Tics","Suma","Trimestral",0,3,4,3,"OFICINA DE GENERACIÓN DEL CONOCIMIENTO Y LA INFORMACIÓN","Humanos, Físicos, Financieros, Tecnológicos"]
[null,"2.  Actualizar  e  implementar  medidas  de  administración  y  fomento  para  el  aprovechamiento  y    el desarrollo  productivo  sostenible  de  la  actividad  pesquera  y  de  la  acuicultura,  acordes  con  las necesidades y marcos legales sectoriales y nacionales actuales, en el territorio nacional ","Actualización e implementación medidas de Administración y fomento del recurso pesquero y de la acuicultura a nivel nacional","Administrar de manera eficiente la actividad pesquera y la acuicultura del país, acorde con las necesidades y marcos legales sectoriales y nacionales actuales","GESTIÓN DE LA ADMINISTRACIÓN Y FOMENTO ","GESTIÓN DE LA ADMINISTRACIÓN Y FOMENTO ","3. GESTIÓN CON VALORES PARA RESULTADOS",11,"Expedir actos administrativos, para el ejercicio de la actividad pesquera y la acuicultura","11.1","Actos administrativos emitidos",null,"Eficiencia",20000,"Actos Administrativos","Suma","Trimestral",5000,5000,5000,5000,"DIRECCIÓN TÉCNICA DE ADMINISTRACIÓN Y FOMENTO","Humanos, Físicos, Financieros, Tecnológicos"]
[null,null,null,null,null,"GESTIÓN DE LA ADMINISTRACIÓN Y FOMENTO ","3. GESTIÓN CON VALORES PARA RESULTADOS",12,"Implementar las medida de salvoconducto o guía de movilización","12.1","Talleres de sensibilización realizadas",null,"Eficacia",7,"Talleres","Suma","Trimestral",0,2,3,2,"DIRECCIÓN TÉCNICA DE ADMINISTRACIÓN Y FOMENTO","Humanos, Físicos, Financieros, Tecnológicos"]
[null,null,null,null,null,"GESTIÓN DE LA ADMINISTRACIÓN Y FOMENTO ","3. GESTIÓN CON VALORES PARA RESULTADOS",13,"Recopilar y analizar información, que permitan adoptar medidas de ordenación, administración y manejo.","13.1","Informe de análisis elaborados",null,"Eficacia",2,"Informes","Suma","Trimestral",0,1,0,1,"DIRECCIÓN TÉCNICA DE ADMINISTRACIÓN Y FOMENTO","Humanos, Físicos, Financieros, Tecnológicos"]
[null,null,null,"Promover acciones orientadas al desarrollo productivo, competitivo y sostenible de la acuicultura",null,"GESTIÓN DE LA ADMINISTRACIÓN Y FOMENTO ","3. GESTIÓN CON VALORES PARA RESULTADOS",14,"Producir alevinos para fomentar la actividad pesquera y acuícola en el país.","14.1","Alevinos producidos a nivel nacional  en las estaciones y centros de la AUNAP",null,"Eficacia",19600000,"Producción Alevinos","Suma","Trimestral",3400000,5650000,5750000,4800000,"DIRECCIÓN TÉCNICA DE ADMINISTRACIÓN Y FOMENTO","Humanos, Físicos, Financieros, Tecnológicos"]
[null,null,null,null,null,"GESTIÓN DE LA ADMINISTRACIÓN Y FOMENTO ","3. GESTIÓN CON VALORES PARA RESULTADOS",15,"Suscribir alianza estratégica, para adelantar el proceso de recopilación de información, que permita establecer las zonas con potencial acuícola y pesquero.","15.1","Alianza estratégica consolidada",null,"Eficiencia",1,"Alianza Estratégica","Suma","Trimestral",0,1,0,0,"DIRECCIÓN TÉCNICA DE ADMINISTRACIÓN Y FOMENTO","Humanos, Físicos, Financieros, Tecnológicos"]
[null,null,null,null,null,"GESTIÓN DE LA ADMINISTRACIÓN Y FOMENTO ","3. GESTIÓN CON VALORES PARA RESULTADOS",16,"Capacitar, socializar a la población objetivo en normatividad y procedimientos para el ejercicio de la actividad acuícola en toda su cadena.","16.1","Personas capacitada en normatividad y procedimientos para el ejercicio de la acuicultura",null,"Eficacia",700,"Personas capacitadas","Suma","Trimestral",0,100,300,300,"DIRECCIÓN TÉCNICA DE ADMINISTRACIÓN Y FOMENTO","Humanos, Físicos, Financieros, Tecnológicos"]
[null,null,null,null,null,"GESTIÓN DE LA ADMINISTRACIÓN Y FOMENTO ","3. GESTIÓN CON VALORES PARA RESULTADOS",17,"Realizar acciones de fomento a la acuicultura en toda su cadena a nivel nacional.","17.1","Apoyo de proyectos productivos de piscicultura.",null,"Eficacia",100,"Acciones de fomento","Suma","Trimestral",0,50,50,0,"DIRECCIÓN TÉCNICA DE ADMINISTRACIÓN Y FOMENTO","Humanos, Físicos, Financieros, Tecnológicos"]
[null,null,null,"Promover acciones orientadas al desarrollo productivo, competitivo y sostenible de la pesca artesanal",null,"GESTIÓN DE LA ADMINISTRACIÓN Y FOMENTO ","3. GESTIÓN CON VALORES PARA RESULTADOS",18,"Capacitar, socializar la normatividad y procedimientos para el ejercicio de la actividad pesquera en toda su cadena.","18.1","Personas capacitada en buenas practicas pesqueras (BPP) y buenas practicas de manufactura (BPM)",null,"Eficacia",700,"Personas capacitadas","Suma","Trimestral",0,100,300,300,"DIRECCIÓN TÉCNICA DE ADMINISTRACIÓN Y FOMENTO","Humanos, Físicos, Financieros, Tecnológicos"]
[null,null,null,null,null,"GESTIÓN DE LA ADMINISTRACIÓN Y FOMENTO ","3. GESTIÓN CON VALORES PARA RESULTADOS",19,"Dotar y adecuar los equipos e instalaciones de los centros de acopio, acorde a la normatividad sanitaria","19.1","Centros de acopio intervenidos",null,"Efectividad",2,"Centros de acopio","Suma","Trimestral",0,0,2,0,"DIRECCIÓN TÉCNICA DE ADMINISTRACIÓN Y FOMENTO","Humanos, Físicos, Financieros, Tecnológicos"]
[null,null,null,null,null,"GESTIÓN DE LA ADMINISTRACIÓN Y FOMENTO ","3. GESTIÓN CON VALORES PARA RESULTADOS",20,"Realizar acciones de fomento para la modernización y transferencia tecnológica de las embarcaciones para mejorar la eficiencia en las faenas de pesca.","20.1","Sustitución de motores de nueva tecnología para mejorar la eficiencia de faenas de pesca.",null,"Eficacia",200,"Motores sustituidos","Suma","Trimestral",0,0,100,100,"DIRECCIÓN TÉCNICA DE ADMINISTRACIÓN Y FOMENTO","Humanos, Físicos, Financieros, Tecnológicos"]
[null,null,null,null,null,"GESTIÓN DE LA ADMINISTRACIÓN Y FOMENTO ","3. GESTIÓN CON VALORES PARA RESULTADOS",21,"Entregar artes y aparejos reglamentarias, para generar alternativas en épocas de veda y de conservación y sostenibilidad de recursos.","21.1","Artes y aparejos reglamentarias entregadas",null,"Efectividad",100,"Artes y aparejo","Suma","Trimestral",0,50,50,0,"DIRECCIÓN TÉCNICA DE ADMINISTRACIÓN Y FOMENTO","Humanos, Físicos, Financieros, Tecnológicos"]
[null,"3.  Lograr la aplicación de las medidas de ordenación por parte de la comunidad para el desarrollo de la actividad  pesquera y de la acuicultura en el territorio nacional ","Desarrollo y ejecución de actividades de inspección y vigilancia de los recursos pesqueros y de la acuicultura a nivel nacional","Sensibilizar a la población sobre el conocimiento de la normatividad y de las medidas de ordenación sobre el recursos pesquero y acuícola del país","GESTIÓN DE LA INSPECCIÓN Y VIGILANCIA ","GESTIÓN DE LA INSPECCIÓN Y VIGILANCIA ","3. GESTIÓN CON VALORES PARA RESULTADOS",22,"Capacitar a la población dedicada a la actividad pesquera, en normatividad y medidas de ordenación de actividad de pesca y acuicultura en Colombia.","22.1","Capacitaciones efectuadas en normatividad y medidas de inspección y vigilancia de la actividad pesquera y acuícola",null,"Eficacia",40,"Capacitaciones","Suma","Trimestral",0,0,20,20,"DIRECCIÓN TÉCNICA DE INSPECCIÓN Y VIGILANCIA","Humanos, Físicos, Financieros, Tecnológicos"]
[null,null,null,null,null,"GESTIÓN DE LA INSPECCIÓN Y VIGILANCIA ","3. GESTIÓN CON VALORES PARA RESULTADOS",23,"Desarrollar campaña de divulgación y  promoción a nivel nacional sobre normatividad de la pesca y acuicultura.","23.1","Campaña de divulgación y promoción a nivel nacional, sobre normatividad de pesca y acuicultura",null,"Eficacia",1,"Campaña","Incremental","Trimestral",0,0,0.5,1,"DIRECCIÓN TÉCNICA DE INSPECCIÓN Y VIGILANCIA","Humanos, Físicos, Financieros, Tecnológicos"]
[null,null,null,"Definir mecanismos eficientes de seguimiento y control para combatir la pesca ilegal no declara y no reglamentada- (INN) en el territorio nacional.",null,"GESTIÓN DE LA INSPECCIÓN Y VIGILANCIA ","3. GESTIÓN CON VALORES PARA RESULTADOS",24,"Diagnosticar la situación actual y elaborar e implementar  procedimientos para el control de la pesca  ilegal no declara y no reglamentada- (INN) y realizar el seguimiento a la mejora e implementar los procesos. ","24.1","Procedimientos elaborados e implementados",null,"Efectividad",2,"Procedimientos","Suma","Trimestral",0,1,1,0,"DIRECCIÓN TÉCNICA DE INSPECCIÓN Y VIGILANCIA","Humanos, Físicos, Financieros, Tecnológicos"]
[null,null,null,null,null,"GESTIÓN DE LA INSPECCIÓN Y VIGILANCIA ","3. GESTIÓN CON VALORES PARA RESULTADOS",25,"Verificar el cumplimiento de la normatividad pesquera","25.1","Operativos de control a la actividad pesquera y acuicultura realizados a nivel nacional",null,"Eficacia",1914,"Operativos","Suma","Trimestral",300,540,613,461,"DIRECCIÓN TÉCNICA DE INSPECCIÓN Y VIGILANCIA","Humanos, Físicos, Financieros, Tecnológicos"]
[null,null,null,null,null,"GESTIÓN DE LA INSPECCIÓN Y VIGILANCIA ","3. GESTIÓN CON VALORES PARA RESULTADOS",26,"Elaborar propuesta de cuotas globales de pesca y emitir acto administrativo de cuotas globales de pesca  por permisionario","26.1","Documento propuestas de cuotas globales de pesca elaborados",null,"Eficacia",1,"Documento cuotas globales de pesca","Suma","Trimestral",0,0,1,0,"DIRECCIÓN TÉCNICA DE INSPECCIÓN Y VIGILANCIA","Humanos, Físicos, Financieros, Tecnológicos"]
[null,null,null,null,null,"GESTIÓN DE LA INSPECCIÓN Y VIGILANCIA ","3. GESTIÓN CON VALORES PARA RESULTADOS",27,"Actualizar las bases de datos para el seguimiento de los permisionarios (RGP)","27.1","Base de datos de Registro General de Pesca Actualizada",null,"Eficacia",1,"Base de Datos","Constante","Trimestral",1,1,1,1,"DIRECCIÓN TÉCNICA DE INSPECCIÓN Y VIGILANCIA","Humanos, Físicos, Financieros, Tecnológicos"]
[null,null,null,"Ajustar y aplicar los procesos sancionatorios por infracciones a las normas para lograr una mayor observancia en su implementación a nivel nacional",null,"GESTIÓN DE LA INSPECCIÓN Y VIGILANCIA ","3. GESTIÓN CON VALORES PARA RESULTADOS",28,"Resolver las investigaciones administrativas por infrancción al Estatuto General de Pesca, correspondiente a los años 2014, 2015, y 2016.","28.1","Investigaciones adminitrativas Resueltas",null,"Efectividad",600,"Actos dministrativo que resuelve la investigación Administrativa","Suma","Trimestral",100,150,150,200,"DIRECCIÓN TÉCNICA DE INSPECCIÓN Y VIGILANCIA","Humanos, Físicos, Financieros, Tecnológicos"]
[null,null,null,"Actualizar las bases de datos de la producción pesquera desembarcada para permitir la generación de medidas de ordenamiento a nivel nacional",null,"GESTIÓN DE LA INSPECCIÓN Y VIGILANCIA ","3. GESTIÓN CON VALORES PARA RESULTADOS",29,"Actualizar Sistema de Información SEPEC","29.1","Base de datos de producción pesquera por sitio, por especie, por arte de pesca recopilados en puertos de desembarco, captura y esfuerzo, puerto de desembarco, datos socio económicos, actualizada",null,"Eficacia",1,"Bases de datos","Constante","Trimestral",1,1,1,1,"DIRECCIÓN TÉCNICA DE INSPECCIÓN Y VIGILANCIA","Humanos, Físicos, Financieros, Tecnológicos"]
[null,"4.  Establecer canales que faciliten el acceso de los usuarios a los programas e información de interés de la entidad y promuevan la participación ciudadana en la gestión misional","Implementación de estrategias orientadas a la generación de espacio de participación ciudadana, como base de una gestión pública transparente","Desarrollar acciones que faciliten el acceso a la información a la ciudadanía y/o grupos de interés, en el marco de una gestión pública institucional transparente.","COMUNICACIÓN ESTRATÉGICA ","COMUNICACIÓN ESTRATÉGICA ","3. GESTIÓN CON VALORES PARA RESULTADOS",30,"Ejecutar las actividades de la estrategia de Rendición de Cuentas de la Entidad","30.1","Avances de ejecución de las actividades de la Rendición de Cuentas ejecutadas",null,"Eficacia",1,"Actividades Rendición de Cuentas","Constante","Trimestral",1,1,1,1,"COMUNICACIONES","Humanos, Físicos, Financieros, Tecnológicos"]
[null,null,null,null,null,"COMUNICACIÓN ESTRATÉGICA ","5. INFORMACIÓN Y COMUNICACIÓN",31,"Generar información y promover espacios de comunicación para visibilizar la entidad ante los diferentes grupos de interés ","31.1","Informe de acciones comunicacionales (eventos, campañas, sinergias, información emitida por los diferentes canales de comunicación) ",null,"Eficacia",4,"Informe","Suma","Trimestral",1,1,1,1,"COMUNICACIONES","Humanos, Físicos, Financieros, Tecnológicos"]
[null,null,null,null,"ATENCIÓN AL CIUDADANO ","ATENCIÓN AL CIUDADANO ","3. GESTIÓN CON VALORES PARA RESULTADOS",32,"Realizar encuesta de satisfacción de usuarios de la entidad","32.1","Encuestas de satisfacción de usuario de la entidad",null,"Eficacia",2,"Encuesta","Suma","Semestral",0,1,0,1,"SECRETARIA GENERAL, APOYO COMUNICACIONES Y PLANEACIÓN","Humanos, Físicos, Financieros, Tecnológicos"]
[null,null,null,null,null,"ATENCIÓN AL CIUDADANO ","3. GESTIÓN CON VALORES PARA RESULTADOS",33,"Atender oportunamente las PQRD’s de la entidad","33.1","Promedio de cumplimiento de atención a PQRD´s",null,"Eficacia",1,"Informe seguimiento PQRD´s","Constante","Trimestral",1,1,1,1,"SECRETARIA GENERAL APOYO PLANEACIÓN","Humanos, Físicos, Financieros, Tecnológicos"]
[null,null,null,null,null,"ATENCIÓN AL CIUDADANO ","3. GESTIÓN CON VALORES PARA RESULTADOS",34,"Ejecutar las actividades de la estrategia de  Servicio al Ciudadano.","34.1","Ejecución de las actividades de la estrategia de Atención al Ciudadano ejecutadas.",null,"Eficacia",1,"Actividades Estrategia de Atención el Ciudadano","Constante","Trimestral",1,1,1,1,"SECRETARIA GENERAL, COMUNICACIONES, PLANEACIÓN","Humanos, Físicos, Financieros, Tecnológicos"]
[null,"5.  Gestionar el desarrollo integral del Talento Humano de la entidad","Generar mayor compromiso por parte del recurso humano, en la gestión organizacional de la Entidad.","Establecer el Plan Anual de Capacitación conforme a los lineamientos contenidos en el plan Nacional de Formación y Capacitación para el desarrollo y la profesionalización de los servidores publicos.","GESTIÓN DEL TALENTO HUMANO ","GESTIÓN DEL TALENTO HUMANO ","1. TALENTO HUMANO",35,"Ejecutar las actividades del Plan Anual de Capacitación, aprobadas por acto administrativo","35.1","Porcentaje de ejecución de las actividades del Plan Anual de Capacitación",null,"Eficacia",1,"Plan Anual de Capacitación","Incremental","Trimestral",0.25,0.5,0.75,1,"COORDINACIÓN DE TALENTO HUMANO","Humanos, Físicos, Financieros, Tecnológicos"]
[null,null,null,"Establecer el Plan Anual de Bienestar de la entidad",null,"GESTIÓN DEL TALENTO HUMANO ","1. TALENTO HUMANO",36,"Ejecutar las actividades del Plan Anual de Bienestar, aprobadas por acto administrativo","36.1","Porcentaje de ejecución de las actividades del Plan Anual de Bienestar",null,"Eficacia",1,"Plan Anual de Bienestar","Incremental","Trimestral",0.25,0.5,0.75,1,"COORDINACIÓN DE TALENTO HUMANO","Humanos, Físicos, Financieros, Tecnológicos"]
[null,"6.  Fortalecer  la  institucionalidad  de la  entidad  para  aumentar  la  operatividad  de  los  procesos  de apoyo a la gestión de la entidad","Optimización de la eficiencia de los procesos de la entidad, mediante el uso eficiente y eficaz de los recursos y la mejora continua de la gestión institucional","Adelantar las actividades contractuales para la adquisición de los bienes y servicios requeridos para el desarrollo y cumplimiento de los fines estatales a cargo de la AUNAP, así como la declaratoria de incumplimiento en la ejecución de los mismos.  ","GESTIÓN DE CONTRATACIÓN ","GESTIÓN DE CONTRATACIÓN ","3. GESTIÓN CON VALORES PARA RESULTADOS",37,"Realizar talleres a los supervisores para fortalecer el segumiento de los contratos y convenios suscritos la Entidad.","37.1","Talleres realizados",null,"Eficacia",3,"Listados de Asistencia","Suma","Trimestral",0,0,3,0,"GRUPO GESTIÓN CONTRACTUAL","Humanos, Físicos, Financieros, Tecnológicos"]
[null,null,null,null,null,"GESTIÓN DE CONTRATACIÓN ","3. GESTIÓN CON VALORES PARA RESULTADOS",38,"Impulsar los procesos de liquidación de actos contractuales que proceda de acuerd a la Ley.","38.1","Cumplimiento en el impulso de liquidación de actos contractuales que se encuentren en esta fase.",null,"Eficacia",1,"Cartas, resoluciones, oficios, menorandos y liquidaciones","Constante","Trimestral",1,1,1,1,"GRUPO GESTIÓN CONTRACTUAL","Humanos, Físicos, Financieros, Tecnológicos"]
[null,"6.  Fortalecer  la  institucionalidad  de la  entidad  para  aumentar  la  operatividad  de  los  procesos  de apoyo a la gestión de la entidad","Optimización de la eficiencia de los procesos de la entidad, mediante el uso eficiente y eficaz de los recursos y la mejora continua de la gestión institucional","Optimizar la eficiencia, coordinación y control de los procesos de la entidad, a través de la implementación Sistema de Gestión Integrado y MECI, así como del fortalecimiento del Sistema de Gestión y Planeación","DIRECCIONAMIENTO ESTRATÉGICO ","DIRECCIONAMIENTO ESTRATÉGICO ","2. DIRECCIONAMIENTO ESTRATÉGICO Y PLANEACIÓN",39,"Formular el Plan de Acción Institucional",{"$f":"CONCATENATE(H47,\".\",1)","v":"39.1"},"Plan de Acción Institucional formulado ",null,"Eficacia",1,"Plan de Acción Aprobado","Suma","Trimestral",1,0,0,0,"PLANEACIÓN","Humanos, Físicos, Financieros, Tecnológicos"]
[null,null,null,null,null,"DIRECCIONAMIENTO ESTRATÉGICO ","2. DIRECCIONAMIENTO ESTRATÉGICO Y PLANEACIÓN",40,"Formular el Plan Anticorrupción y de Atención al Ciudadano (PAAC)",{"$f":"CONCATENATE(H48,\".\",1)","v":"40.1"},"Plan Anticorrupción y de Atención al Ciudadano (PAAC) formulado",null,"Eficacia",1,"PAAC Aprobado","Suma","Trimestral",1,0,0,0,"PLANEACIÓN","Humanos, Físicos, Financieros, Tecnológicos"]
[null,null,null,null,null,"DIRECCIONAMIENTO ESTRATÉGICO ","2. DIRECCIONAMIENTO ESTRATÉGICO Y PLANEACIÓN",41,"Formular mapa de Riesgos Institucional de la Entidad. (Riesgos de Corrupción y de Gestión)","41.1","Mapa de Riesgos Formulado e implementado",null,"Eficacia",1,"Mapa de Riesgos Institucional Aprobado","Suma","Trimestral",1,0,0,0,"PLANEACIÓN","Humanos, Físicos, Financieros, Tecnológicos"]
[null,null,null,null,null,"DIRECCIONAMIENTO ESTRATÉGICO ","4. EVALUACIÓN DE RESULTADOS",42,"Monitoreo de control al mapa de Riesgos Institucional de la Entidad. (Riesgos de Corrupción y de Gestión)","42.1","Monitoreo realizado al Mapa de Riesgos Institucional",null,"Eficacia",5,"Informe de Segumiento","Suma","Bimestral",0,2,2,1,"PLANEACIÓN","Humanos, Físicos, Financieros, Tecnológicos"]
[null,null,null,null,null,"DIRECCIONAMIENTO ESTRATÉGICO ","4. EVALUACIÓN DE RESULTADOS",43,"Realizar seguimiento al Plan de Acción anual de la entidad","43.1","Seguimiento efectuado a Plan de Acción Institucional",null,"Eficacia",4,"Informe de Seguimiento","Suma","Bimestral",1,1,1,1,"PLANEACIÓN","Humanos, Físicos, Financieros, Tecnológicos"]
[null,null,null,null,null,"DIRECCIONAMIENTO ESTRATÉGICO ","4. EVALUACIÓN DE RESULTADOS",44,"Elaborar informes de gestión de la entidad","44.1","Informes de gestión elaborados",null,"Eficacia",1,"Informe de Gestión","Suma","Semestral",0,0,0,1,"PLANEACIÓN","Humanos, Físicos, Financieros, Tecnológicos"]
[null,null,null,null,null,"DIRECCIONAMIENTO ESTRATÉGICO ","4. EVALUACIÓN DE RESULTADOS",45,"Realizar seguimiento al presupuesto de los proyectos de inversión de la entidad.","45.1","Seguimiento realizado al presupuesto de los proyectos de inversión",null,"Eficacia",12,"Informe de seguimiento Presupuesto de Inversión","Suma","Mensual",3,3,3,3,"PLANEACIÓN","Humanos, Físicos, Financieros, Tecnológicos"]
[null,null,null,null,"MEJORA CONTINUA ","MEJORA CONTINUA ","3. GESTIÓN CON VALORES PARA RESULTADOS",46,"Revisar, actualizar y/o ajustar los procesos de la entidad, como parte del proceso de implementación del SGC y MECI (Fase II)","46.1","Avance implementación SGC y MECI",null,"Eficiencia",0.6,"Implementación SIG - MECI","Incremental","Trimestral",0.05,0.2,0.4,0.6,"PLANEACIÓN","Humanos, Físicos, Financieros, Tecnológicos"]
[null,null,null,null,null,"MEJORA CONTINUA ","3. GESTIÓN CON VALORES PARA RESULTADOS",47,"Elaborar procesos y procedimientos del Sistema de Gestión Ambiental (Fase II)","47.1","Avance documentación procesos y procedimientos del SGA",null,"Eficiencia",0.7,"Documento SGA","Incremental","Trimestral",0.05,0.25,0.5,0.7,"PLANEACIÓN","Humanos, Físicos, Financieros, Tecnológicos"]
[null,null,null,null,null,"MEJORA CONTINUA ","3. GESTIÓN CON VALORES PARA RESULTADOS",48,"Optimizar los procesos administrativos y de gestión de la entidad","48.1","Avance de optimización de proceso administrativos y de gestión",null,"Eficiencia",0.7,"Optimización Procesos","Incremental","Trimestral",0.05,0.25,0.5,0.7,"PLANEACIÓN","Humanos, Físicos, Financieros, Tecnológicos"]
[null,null,null,null,null,"MEJORA CONTINUA ","4. EVALUACIÓN DE RESULTADOS",49,"Realizar seguimiento a los Indicadores de gestión de los procesos de Entidad","49.1","Seguimiento efcetuado a indicadores de Gestión de procesos",null,"Eficacia",4,"Seguimiento Indicadores de Gestión de Procesos","Suma","Trimestral",0,2,1,1,"PLANEACIÓN","Humanos, Físicos, Financieros, Tecnológicos"]
[null,null,null,null,"CONTROL INTERNO LA GESTIÓN  ","CONTROL INTERNO LA GESTIÓN  ","7. CONTROL INTERNO",50,"Elaborar y ejecutar el Plan de Acción de Control Interno","50.1","Plan de Acción de Control Interno elaborado y ejecutado","% Avance ejecutado / % Avance planeado","Eficacia",1,"Plan de Acción de Control Interno","Incremental","Trimestral",0.1,0.3,0.7,1,"OFICINA DE CONTROL INTERNO","Humanos, Físicos, Financieros, Tecnológicos"]
[null,null,null,null,"GESTIÓN DOCUMENTAL","GESTIÓN DOCUMENTAL ","5. INFORMACIÓN Y COMUNICACIÓN",51,"Elaborar procesos y procedimientos del Sistema de Gestión Documental (Fase II)","51.1","Avance documentación procesos y procedimientos del SGD",null,"Eficacia",0.8,"Procesos y Procedimientos","Incremental","Trimestral",0.05,0.3,0.6,0.8,"COORDINACIÓN ADMINISTRATIVA Y PLANEACIÓN","Humanos, Físicos, Financieros, Tecnológicos"]
[null,null,null,null,null,"GESTIÓN DOCUMENTAL ","5. INFORMACIÓN Y COMUNICACIÓN",52,"Gestionar la aprobación de las TRD ante el Archivo General de la Nación.","52.1","Gestiones adelantadas aprobación TRD ",null,"Eficacia",1,"Gestiones realizadas","Constante","Trimestral",1,1,1,1,"COORDINACIÓN ADMINISTRATIVA Y PLANEACIÓN","Humanos, Físicos, Financieros, Tecnológicos"]
[null,null,null,null,null,"GESTIÓN DOCUMENTAL ","5. INFORMACIÓN Y COMUNICACIÓN",53,"Implementar herramienta Tics para la Gestión documental de la Entidad","53.1","Implementar herramienta Tics para la Gestión documental de la Entidad",null,"Eficacia",1,"Diagnostico","Incremental","Trimestral",0.05,0.5,0.75,1,"COORDINACIÓN ADMINISTRATIVA","Humanos, Físicos, Financieros, Tecnológicos"]
[null,null,null,null,"GESTIÓN ADMINISTRATIVA ","GESTIÓN ADMINISTRATIVA ","3. GESTIÓN CON VALORES PARA RESULTADOS",54,"Actualizar y poner en operación el software inventario de acuerdo a las NICSP y NIIF","54.1","Diagnostico del estado de la información en el software",null,"Eficacia",1,"Software Implementado","Incremental","Trimestral",0.1,0.5,0.75,1,"COORDINACIÓN ADMINISTRATIVA","Humanos, Físicos, Financieros, Tecnológicos"]
[null,null,null,null,null,"GESTIÓN ADMINISTRATIVA ","3. GESTIÓN CON VALORES PARA RESULTADOS",55,"Descentralizar la administración y uso de bienes de la entidad a nivel regional.","55.1","Direcciones Regionales descentralizadas en administración y uso de bienes",null,"Eficacia",7,"Regionales descentralizadas","Suma","Trimestral",0,2,2,3,"COORDINACIÓN ADMINISTRATIVA","Humanos, Físicos, Financieros, Tecnológicos"]
[null,"6.  Fortalecer  la  institucionalidad  de la  entidad  para  aumentar  la  operatividad  de  los  procesos  de apoyo a la gestión de la entidad","Optimización de la eficiencia de los procesos de la entidad, mediante el uso eficiente y eficaz de los recursos y la mejora continua de la gestión institucional","Responder dentro del termino legal establecido los derechos de petición y solicitudes elevadas a la entidad ","GESTIÓN JURÍDICA ","GESTIÓN JURÍDICA ","3. GESTIÓN CON VALORES PARA RESULTADOS",56,"Atender oportunamente los derechos de petición y solicitudes interpuestas por lo ciudadanos. ","56.1","Respuesta a peticiones y solicitudes interpuestas.",null,"Eficiencia",1,"Derechos de petición y solicitudes","Constante","Trimestral",1,1,1,1,"OFICINA ASESORA JURÍDICA","Humanos, Físicos, Financieros, Tecnológicos"]
[null,null,null,"Gestionar el cobro coactivo y persuasivo y/o coactivo de todas las sanciones administrativas allegadas a la Oficina de Asesoría Jurídica por parte de la Dirección Técnica de Inspección y Vigilancia (DTIV)",null,"GESTIÓN JURÍDICA ","3. GESTIÓN CON VALORES PARA RESULTADOS",57,"Tramitar el cobro persuasivo y/o coactivo por lo menos del 60% de las sanciones administrativas allegadas por parte la DTIV.","57.1","Cobro persuasivo y/o coactivo tramitado de sanciones administrativas",null,"Eficiencia",0.6,"Trámite de cobro persuasivo y/o coactivo","Constante","Trimestral",0.6,0.6,0.6,0.6,"OFICINA ASESORA JURÍDICA","Humanos, Físicos, Financieros, Tecnológicos"]
[null,null,null,"Adelantar en primera instancia los procesos disciplinarios en contra de los funcionarios de la entidad. ","GESTIÓN DE CONTROL INTERNO DISCIPLINARIO ","GESTIÓN DE CONTROL INTERNO DISCIPLINARIO ","3. GESTIÓN CON VALORES PARA RESULTADOS",58,"Realización de charlas sobre procedimiento Disciplinario","58.1","Charlas realizadas","Eficacia","Eficacia",2,"Charlas","Suma","Semestral",0,1,0,1,"SECRETARÍA GENERAL","Humanos, Físicos, Financieros, Tecnológicos"]
[null,null,null,null,null,"GESTIÓN DE CONTROL INTERNO DISCIPLINARIO ","3. GESTIÓN CON VALORES PARA RESULTADOS",59,"Aplicación de la Ley 734 de 2002 y las normas que lo complementan","59.1","Sustanciación de por lo menos el 25% de los procesos disciplinarios existentes. ","Eficacia","Eficacia",0.25,"Sustanciación","Constante","Trimestral",0.25,0.25,0.25,0.25,"SECRETARÍA GENERAL","Humanos, Físicos, Financieros, Tecnológicos"]
[null,"7. Programar,  controlar  y  registrar  las  operaciones  financieras  y  contractuales  de  la  entidad  para \ngarantizar el cumplimiento de la misión de la entidad","Optimización de la eficiencia de los procesos de la entidad, mediante el uso eficiente y eficaz de los recursos y la mejora continua de la gestión institucional","Desarrollar acciones encaminadas al proceso de convergencia a Normas Internacionales de Contabilidad para el Sector Público (NICSP) y Normas Internacionales de Información Financiera (NIIF), de la entidad.","GESTIÓN FINANCIERA ","GESTIÓN FINANCIERA ","3. GESTIÓN CON VALORES PARA RESULTADOS",60,"Registrar Saldos Iniciales en la Plataforma SIIF NACION II, y SCHIP en el primer periodo de aplicación del nuevo Marco Normativo para las Entidades  del Gobierno","60.1","Documento de saldos Iniciales o Estado de Situación Financiera de Apertura ESFA  aprobado por la Dirección General  y el Comité de Convergencia  Contable",null,"Eficacia",1,"Documento","Suma","Trimestral",1,0,0,0,"COORDINACIÓN FINANCIERA","Humanos, Físicos, Financieros, Tecnológicos"]
[null,null,null,null,null,"GESTIÓN FINANCIERA ","3. GESTIÓN CON VALORES PARA RESULTADOS",61,"Elaboración, presentación, transmisión y publicación de estados financieros con información trimestral de conformidad con el nuevo Marco Normativo y Conceptual para Entidades de Gobierno en el primer periodo de aplicación,  para informado a las Entidades o entes de control que lo requieran.  ","61.1","Informe Contable Publico  del Estado de situación financiera de la AUNAP elaborado",null,"Eficacia",4,"Documento","Suma","Trimestral",1,1,1,1,"COORDINACIÓN FINANCIERA","Humanos, Físicos, Financieros, Tecnológicos"]
[null,null,null,null,null,"GESTIÓN FINANCIERA ","3. GESTIÓN CON VALORES PARA RESULTADOS",62,"Realizar la programación, control y registro de las operaciones financieras de acuerdo con los recursos disponibles de la entidad. Integra las actividades relacionadas con la adquisición de bienes y servicios, la gestión de proyectos de inversión y la programación y ejecución del presupuesto ","62.1","Informe de Ejecución Presupuestal elaborados",null,"Eficacia",12,"Informe","Suma","Mensual",3,3,3,3,"COORDINACIÓN FINANCIERA","Humanos, Físicos, Financieros, Tecnológicos"]
[]
[]
[]
[null,"ELABORÓ ","REVISÓ","APROBÓ",null,null,null,"CONTROL DE CAMBIOS"]
[null,"Omar Alejandro Peña Gómez\nContratista de Planeación","Alexandra López Rodríguez\nProfesional Especializado Grado 14\ncon Funciones de Planeación","Comité Institucional de Desarrollo Administrativo",null,null,null,"VERSIÓN","FECHA","DESCRIPCIÓN DE LA MODIFICACIÓN"]
[null,null,null,null,null,null,null,1,"Enero 31 de 2018","• Primera Versión del Plan vigencia 2018"]
[null,null,null,null,null,null,null,2,"Agosto 31 de 2018","• Se modificaron metas anuales del Plan de Acción, especificamente de la DRB y DRBG, y el proceso de Gestión de Inspección y Vigilancia."]
[]
[]
[]
[]
[]
[]
[]
[]
[]
[]
[]
[]
[]
[]
[]
[]
[]
[]
[]
[]
[]
[]
[]
[]
[]
[]
[]
[]
[]
[]
[]
[null,"DIMENSIONES MIPG"]
[null,"1. TALENTO HUMANO"]
[null,"2. DIRECCIONAMIENTO ESTRATÉGICO Y PLANEACIÓN"]
[null,"3. GESTIÓN CON VALORES PARA RESULTADOS"]
[null,"4. EVALUACIÓN DE RESULTADOS"]
[null,"5. INFORMACIÓN Y COMUNICACIÓN"]
[null,"6. GESTIÓN DEL CONOCIMIENTO Y LA INNOVACIÓN"]
[null,"7. CONTROL INTERNO"]
[]
[null,"OBJETIVOS ESTRATTÉGICOS"]
[null,"1.  Lograr el aprovechamiento eficiente y sostenible de los recursos pesqueros y el desarrollo de la acuicultura en el territorio nacional"]
[null,"2.  Actualizar  e  implementar  medidas  de  administración  y  fomento  para  el  aprovechamiento  y    el desarrollo  productivo  sostenible  de  la  actividad  pesquera  y  de  la  acuicultura,  acordes  con  las necesidades y marcos legales sectoriales y nacionales actuales, en el territorio nacional "]
[null,"3.  Lograr la aplicación de las medidas de ordenación por parte de la comunidad para el desarrollo de la actividad  pesquera y de la acuicultura en el territorio nacional "]
[null,"4.  Establecer canales que faciliten el acceso de los usuarios a los programas e información de interés de la entidad y promuevan la participación ciudadana en la gestión misional"]
[null,"5.  Gestionar el desarrollo integral del Talento Humano de la entidad"]
[null,"6.  Fortalecer  la  institucionalidad  de la  entidad  para  aumentar  la  operatividad  de  los  procesos  de apoyo a la gestión de la entidad"]
[null,"7. Programar,  controlar  y  registrar  las  operaciones  financieras  y  contractuales  de  la  entidad  para garantizar el cumplimiento de la misión de la entidad"]
[]
[null,"PROCESOS","TIPO ANUALIZACIÓN","CATEGORÍA INDICADOR","UNIDAD DE MEDIDA","PERIODICIDAD"]
[null,"DIRECCIONAMIENTO ESTRATÉGICO ","Incremental","Eficacia","Cantidad","Mensual"]
[null,"MEJORA CONTINUA ","Suma","Eficiencia","Porcentaje","Bimestral"]
[null,"COMUNICACIÓN ESTRATÉGICA ","Constante","Efectividad",null,"Trimestral"]
[null,"GESTIÓN DE LA INFORMACIÓN Y GENERACIÓN DEL CONOCIMIENTO ","Decreciente",null,null,"Cuatrimestral"]
[null,"GESTIÓN DE LA ADMINISTRACIÓN Y FOMENTO ",null,null,null,"Semestral"]
[null,"GESTIÓN DE LA INSPECCIÓN Y VIGILANCIA ",null,null,null,"Anual"]
[null,"ATENCIÓN AL CIUDADANO "]
[null,"GESTIÓN DEL TALENTO HUMANO "]
[null,"GESTIÓN DE CONTRATACIÓN "]
[null,"GESTIÓN FINANCIERA "]
[null,"GESTIÓN JURÍDICA "]
[null,"GESTIÓN ADMINISTRATIVA "]
[null,"GESTIÓN SERVICIOS DE TICS"]
[null,"GESTIÓN DOCUMENTAL "]
[null,"CONTROL INTERNO LA GESTIÓN  "]
[null,"GESTIÓN DE CONTROL INTERNO DISCIPLINARIO "]
[null,"DIRECCIÓN REGIONAL BARRANCA"]
[null,"DIRECCIÓN REGIONAL BARRANQUILLA"]
[null,"DIRECCIÓN REGIONAL BOGOTÁ"]
[null,"DIRECCIÓN REGIONAL CALI"]
[null,"DIRECCIÓN REGIONAL MAGANGUÉ"]
[null,"DIRECCIÓN REGIONAL MEDELLÍN"]
[null,"DIRECCIÓN REGIONAL VILLAVICENCIO"]

{"sheet":"PA 2018_REGIONAL","index":1,"n_rows":160,"n_cols":24,"rows_kept":160,"cut":false,"hidden":false,"merged":[[16,1,60,1],[16,2,60,2],[16,3,29,3],[26,4,28,4],[8,2,15,2],[8,3,9,3],[21,4,22,4],[31,4,35,4],[61,2,79,2],[6,10,6,13],[6,14,6,17],[6,18,6,21],[73,4,74,4],[11,3,15,3],[11,4,15,4],[54,4,56,4],[70,4,72,4],[61,4,62,4],[90,10,90,13],[16,4,17,4],[18,4,20,4],[83,8,83,13],[87,10,87,13],[88,10,88,13],[40,4,41,4],[42,4,43,4],[44,4,45,4],[48,4,53,4],[57,4,58,4],[84,10,84,13],[85,10,85,13],[86,10,86,13],[23,4,24,4],[89,10,89,13],[84,1,88,1],[61,1,79,1],[8,1,15,1],[1,1,4,2],[1,3,4,22],[46,3,60,3],[30,3,45,3],[46,4,47,4],[36,4,37,4],[38,4,39,4],[67,4,68,4],[64,4,65,4],[84,2,88,2],[84,3,88,3],[61,3,69,3],[70,3,79,3]]}
[]
[null,null,null,"AUTORIDAD NACIONAL DE ACUICULTURA Y PESCA\nPLAN DE ACCIÓN INSTITUCIONAL 2018",null,null,null,null,null,null,null,null,null,null,null,null,null,null,null,null,null,null,null,"Código: PL-DE-001"]
[null,null,null,null,null,null,null,null,null,null,null,null,null,null,null,null,null,null,null,null,null,null,null,"Versión: 1"]
[null,null,null,null,null,null,null,null,null,null,null,null,null,null,null,null,null,null,null,null,null,null,null,"Fecha: Agosto 31 de 2018"]
[null,null,null,null,null,null,null,null,null,null,null,null,null,null,null,null,null,null,null,null,null,null,null,"Página: 1 de 1"]
[]
[null,null,null,null,null,null,null,null,null,null,"INDICADOR",null,null,null,"META GLOBAL",null,null,null,"PROGRAMACIÓN DE LA META"]
[null,"OBJETIVOS ESTRATÉGICO","FOCO ANUAL","LÍNEA DE ACCIÓN","DIRECCIÓN REGIONAL","FILTRO","DIMENSIONES DEL MIPG","# ACT.","ID. ACT.","ACTIVIDAD","ID. IND.","NOMBRE","FORMULA","CATEGORÍA","MAGNITUD PROGRAMADA","UNIDAD DE MEDIDA","TIPO DE ANUALIZACIÓN","PERIODICIDAD DE MEDICIÓN","I TRI","II TRI","III TRI","IV TRI","NOMBRE DEL ÁREA RESPONSABLE","RECURSOS REQUERIDOS"]
[null,"1.  Lograr el aprovechamiento eficiente y sostenible de los recursos pesqueros y el desarrollo de la acuicultura en el territorio nacional","Desarrollo del conocimiento para el aprovechamiento eficiente y sostenible de los recursos pesqueros y  de la acuicultura  a nivel Nacional ","Desarrollar tecnologías para la optimización del rendimiento de la acuicultura y la pesca de manera sostenible en todo el territorio nacional","DIRECCIÓN REGIONAL CALI","CALI","6. GESTIÓN DEL CONOCIMIENTO Y LA INNOVACIÓN",1,{"$f":"CONCATENATE(IF(E9=\"DIRECCIÓN REGIONAL CALI\",\"DRC\",IF(E9=\"DIRECCIÓN REGIONAL BARRANCA\",\"DRB\",IF(E9=\"DIRECCIÓN REGIONAL MEDELLÍN\",\"DRMD\",IF(E9=\"DIRECCIÓN REGIONAL MAGANGUÉ\",\"DRMG\",IF(E9=\"DIRECCIÓN REGIONAL BARRANQUILLA\",\"DRBR\",IF(E9=\"DIRECCIÓN REGIONAL VILLAVICENCIO\",\"DRV\",IF(E9=\"DIRECCIÓN REGIONAL BOGOTÁ\",\"DRBG\",\"\"))))))),H9)","v":"DRC1"},"Evaluar el potencial acuícola de nuevas especies nativas y/o domesticadas,  Diversificación de cultivos, establecimientos de nuevas metodologías de cultivo y socialización de alternativa para población.",{"$f":"CONCATENATE(I9,\".\",\"1\")","v":"DRC1.1"},"Ensayos en innovación  en el desarrollo de paquetes tecnológico, a través del Establecimiento de sistemas de cultivos multitróficos con pargo lunarejo, jaiba, piangua y camarón blanco ; Tilapia y camarón, en sistemas de recirculación cerrados",null,"Eficacia",4,"Ensayos","Suma","Semestral",0,0,0,4,"DIRECCIÓN REGIONAL CALI","Humanos, Físicos, Financieros, Tecnológicos"]
[null,null,null,null,"DIRECCIÓN REGIONAL BARRANQUILLA","BARRANQUILLA","6. GESTIÓN DEL CONOCIMIENTO Y LA INNOVACIÓN",2,"DRBR2","Realizar ensayos, experimentos o pruebas científicas para el mejoramiento de la calidad y eficiencia en la reproducción, larvicultura, cultivo, sanidad y procesamiento, de especies comerciales;  y/o evaluar el potencial acuícola de nuevas especies nativas avanzando en el desarrollo de paquetes tecnológicos, a través de alianzas estratégicas.","DRBR2.1","Investigaciones realizadas para el mejoramiento de procesos productivos en especies comerciales y en especies nativas con potencial acuícola para el desarrollo de tecnologías en la reproducción, larvicultura, cultivo y sanidad de las mismas",null,"Eficacia",12,"Investigaciones","Suma","Semestral",0,4,4,4,"DIRECCIÓN REGIONAL BARRANQUILLA","Humanos, Físicos, Financieros, Tecnológicos"]
[null,null,null,"Aportar al conocimiento de la dinámica social y económica de pescadores y acuicultores que permita dar lineamientos de administración y manejo a los recursos a nivel nacional","DIRECCIÓN REGIONAL BARRANQUILLA","BARRANQUILLA","6. GESTIÓN DEL CONOCIMIENTO Y LA INNOVACIÓN",3,"DRBR3","Producir y publicar documentos técnicos que permita dar lineamientos de administración y manejo a los recursos a nivel nacional","DRBR3.1","Documentos técnicos publicados",null,"Eficacia",12,"Publicaciones","Suma","Semestral",0,0,3,9,"DIRECCIÓN REGIONAL BARRANQUILLA","Humanos, Físicos, Financieros, Tecnológicos"]
[null,null,null,"Evaluar y actualizar el estado, esfuerzo y dinámica de los recursos pesqueros y/o las pesquerías en el territorio nacional para el manejo y administración sostenible","DIRECCIÓN REGIONAL CALI","CALI","6. GESTIÓN DEL CONOCIMIENTO Y LA INNOVACIÓN",4,"DRC4","Obtener información técnica y científica sobre capturas objetivo de camarón blanco (Pennaeus spp) en pesca artesanal en la regional Cali ","DRC4.1","Salidas de campo realizadas para la recopilación de información biológica pesquera. ",null,"Eficacia",48,"Salidas de campo","Suma","Trimestral",3,15,15,15,"DIRECCIÓN REGIONAL CALI","Humanos, Físicos, Financieros, Tecnológicos"]
[null,null,null,null,null,"CALI","6. GESTIÓN DEL CONOCIMIENTO Y LA INNOVACIÓN",5,{"$f":"CONCATENATE(IF(E12=\"DIRECCIÓN REGIONAL CALI\",\"DRC\",IF(E12=\"DIRECCIÓN REGIONAL BARRANCA\",\"DRB\",IF(E12=\"DIRECCIÓN REGIONAL MEDELLÍN\",\"DRMD\",IF(E12=\"DIRECCIÓN REGIONAL MAGANGUÉ\",\"DRMG\",IF(E12=\"DIRECCIÓN REGIONAL BARRANQUILLA\",\"DRBR\",IF(E12=\"DIRECCIÓN REGIONAL VILLAVICENCIO\",\"DRV\",IF(E12=\"DIRECCIÓN REGIONAL BOGOTÁ\",\"DRBG\",\"\"))))))),H13)","v":"DRC5"},"obtener información Biológico pesquera del recurso camarón en las plantas de procesos y comercialización","DRC5.1","visitas a planta para la recopilación de información biológica pesquera",null,"Eficacia",74,"visitas a planta","suma","trimestral",2,24,24,24,"DIRECCIÓN REGIONAL CALI","Humanos, Físicos, Financieros, Tecnológicos"]
[null,null,null,null,null,"CALI","6. GESTIÓN DEL CONOCIMIENTO Y LA INNOVACIÓN",6,{"$f":"CONCATENATE(IF(E12=\"DIRECCIÓN REGIONAL CALI\",\"DRC\",IF(E12=\"DIRECCIÓN REGIONAL BARRANCA\",\"DRB\",IF(E12=\"DIRECCIÓN REGIONAL MEDELLÍN\",\"DRMD\",IF(E12=\"DIRECCIÓN REGIONAL MAGANGUÉ\",\"DRMG\",IF(E12=\"DIRECCIÓN REGIONAL BARRANQUILLA\",\"DRBR\",IF(E12=\"DIRECCIÓN REGIONAL VILLAVICENCIO\",\"DRV\",IF(E12=\"DIRECCIÓN REGIONAL BOGOTÁ\",\"DRBG\",\"\"))))))),H14)","v":"DRC6"},"Evaluar los indicadores de especies de pesca blanca, que permita estimar la producción y/o  volúmenes de buches de pescado (vejigas natatorias), mediante la toma de información biológica pesquera y estadística sobre vejigas natatorias o buches de pescado en los caladeros, puntos de acopio.","DRC6.1","Salidas de campo y visitas realizadas para la recopilación de información biológica pesquera y estadística",null,"Eficacia",54,"Salidas y visitas de campo","suma","Trimestral",0,18,18,18,"DIRECCIÓN REGIONAL CALI","Humanos, Físicos, Financieros, Tecnológicos"]
[null,null,null,null,null,"CALI","6. GESTIÓN DEL CONOCIMIENTO Y LA INNOVACIÓN",7,{"$f":"CONCATENATE(IF(E12=\"DIRECCIÓN REGIONAL CALI\",\"DRC\",IF(E12=\"DIRECCIÓN REGIONAL BARRANCA\",\"DRB\",IF(E12=\"DIRECCIÓN REGIONAL MEDELLÍN\",\"DRMD\",IF(E12=\"DIRECCIÓN REGIONAL MAGANGUÉ\",\"DRMG\",IF(E12=\"DIRECCIÓN REGIONAL BARRANQUILLA\",\"DRBR\",IF(E12=\"DIRECCIÓN REGIONAL VILLAVICENCIO\",\"DRV\",IF(E12=\"DIRECCIÓN REGIONAL BOGOTÁ\",\"DRBG\",\"\"))))))),H15)","v":"DRC7"},"obtener información Biológico pesquera   del recurso piangua  hembra  (Anadara tuberculosa)  y Anadara similis  en zonas de extracción de la regional Cali . ","DRC7.1","Salidas de campo  realizadas para la recopilación de información biológica pesquera. ",null,"Eficacia",50,"Salidas de campo","suma","Trimestral",5,15,15,15,"DIRECCIÓN REGIONAL CALI","Humanos, Físicos, Financieros, Tecnológicos"]
[null,null,null,null,null,"CALI","6. GESTIÓN DEL CONOCIMIENTO Y LA INNOVACIÓN",8,{"$f":"CONCATENATE(IF(E12=\"DIRECCIÓN REGIONAL CALI\",\"DRC\",IF(E12=\"DIRECCIÓN REGIONAL BARRANCA\",\"DRB\",IF(E12=\"DIRECCIÓN REGIONAL MEDELLÍN\",\"DRMD\",IF(E12=\"DIRECCIÓN REGIONAL MAGANGUÉ\",\"DRMG\",IF(E12=\"DIRECCIÓN REGIONAL BARRANQUILLA\",\"DRBR\",IF(E12=\"DIRECCIÓN REGIONAL VILLAVICENCIO\",\"DRV\",IF(E12=\"DIRECCIÓN REGIONAL BOGOTÁ\",\"DRBG\",\"\"))))))),H16)","v":"DRC8"},"Obtener información técnica y científica que permita evaluar el estado de la pesca continental y  recursos pesqueros asociados, con el objetivo de realizar los ordenamientos necesarios para el desarrollo sostenible.","DRC8.1","Evaluación de pesca continental y recursos pesqueros asociados",null,"Eficacia",2,"Bases de datos por zona o región","Suma","Trimestral",0,1,0,1,"DIRECCIÓN REGIONAL CALI","Humanos, Físicos, Financieros, Tecnológicos"]
[null,"2.  Actualizar  e  implementar  medidas  de  administración  y  fomento  para  el  aprovechamiento  y    el desarrollo  productivo  sostenible  de  la  actividad  pesquera  y  de  la  acuicultura,  acordes  con  las necesidades y marcos legales sectoriales y nacionales actuales, en el territorio nacional ","Actualización e implementación medidas de Administración y fomento del recurso pesquero y de la acuicultura a nivel nacional","Administrar de manera eficiente la actividad pesquera y la acuicultura del país, acorde con las necesidades y marcos legales sectoriales y nacionales actuales","DIRECCIÓN REGIONAL BARRANCA","BARRANCA","3. GESTIÓN CON VALORES PARA RESULTADOS",9,"DRB9","Apoyar la expedición de actos administrativos, para el ejercicio de la actividad pesquera y la acuicultura, mediante la sustanciación y emisión de concepto técnico para el inicio del trámite.","DRB9.1","Solicitudes de permisos (Cultivo, Comercialización y Arel) sustanciadas y conceptuadas",null,"Eficacia",1,"Concepto Técnico","Constante","Trimestral",1,1,1,1,"DIRECCIÓN REGIONAL BARRANCA","Humanos, Físicos, Financieros, Tecnológicos"]
[null,null,null,null,null,"BARRANCA","3. GESTIÓN CON VALORES PARA RESULTADOS",10,{"$f":"CONCATENATE(IF(E17=\"DIRECCIÓN REGIONAL CALI\",\"DRC\",IF(E17=\"DIRECCIÓN REGIONAL BARRANCA\",\"DRB\",IF(E18=\"DIRECCIÓN REGIONAL MEDELLÍN\",\"DRMD\",IF(E18=\"DIRECCIÓN REGIONAL MAGANGUÉ\",\"DRMG\",IF(E18=\"DIRECCIÓN REGIONAL BARRANQUILLA\",\"DRBR\",IF(E18=\"DIRECCIÓN REGIONAL VILLAVICENCIO\",\"DRV\",IF(E18=\"DIRECCIÓN REGIONAL BOGOTÁ\",\"DRBG\",\"\"))))))),H18)","v":"DRB10"},"Realización de charlas de sensibilización previo a la implementación de las medidas de salvoconducto o guía de movilización","DRB10.1","Charlas de sensibilización realizadas",null,"Eficacia",10,"Charlas","Suma","Trimestral",2,3,3,2,"DIRECCIÓN REGIONAL BARRANCA","Humanos, Físicos, Financieros, Tecnológicos"]
[null,null,null,null,"DIRECCIÓN REGIONAL BARRANQUILLA","BARRANQUILLA","3. GESTIÓN CON VALORES PARA RESULTADOS",11,"DRBR11","Expedir carnets, para el ejercicio de la actividad pesquera y la acuicultura","DRBR11.1","Carnet de pesca artesanal y deportiva expedidos",null,"Eficacia",1500,"Actos Administrativos","Suma","Trimestral",200,550,550,200,"DIRECCIÓN REGIONAL BARRANQUILLA","Humanos, Físicos, Financieros, Tecnológicos"]
[null,null,null,null,null,"BARRANQUILLA","3. GESTIÓN CON VALORES PARA RESULTADOS",12,{"$f":"CONCATENATE(IF(E19=\"DIRECCIÓN REGIONAL CALI\",\"DRC\",IF(E19=\"DIRECCIÓN REGIONAL BARRANCA\",\"DRB\",IF(E19=\"DIRECCIÓN REGIONAL MEDELLÍN\",\"DRMD\",IF(E19=\"DIRECCIÓN REGIONAL MAGANGUÉ\",\"DRMG\",IF(E19=\"DIRECCIÓN REGIONAL BARRANQUILLA\",\"DRBR\",IF(E19=\"DIRECCIÓN REGIONAL VILLAVICENCIO\",\"DRV\",IF(E19=\"DIRECCIÓN REGIONAL BOGOTÁ\",\"DRBG\",\"\"))))))),H20)","v":"DRBR12"},"Implementar las medida de salvoconducto o guía de movilización","DRBR12.1","Charlas de sensibilización realizadas",null,"Eficacia",450,"Personas sensibilizadas","Suma","Trimestral",50,150,150,100,"DIRECCIÓN REGIONAL BARRANQUILLA","Humanos, Físicos, Financieros, Tecnológicos"]
[null,null,null,null,null,"BARRANQUILLA","3. GESTIÓN CON VALORES PARA RESULTADOS",13,{"$f":"CONCATENATE(IF(E19=\"DIRECCIÓN REGIONAL CALI\",\"DRC\",IF(E19=\"DIRECCIÓN REGIONAL BARRANCA\",\"DRB\",IF(E19=\"DIRECCIÓN REGIONAL MEDELLÍN\",\"DRMD\",IF(E19=\"DIRECCIÓN REGIONAL MAGANGUÉ\",\"DRMG\",IF(E19=\"DIRECCIÓN REGIONAL BARRANQUILLA\",\"DRBR\",IF(E19=\"DIRECCIÓN REGIONAL VILLAVICENCIO\",\"DRV\",IF(E19=\"DIRECCIÓN REGIONAL BOGOTÁ\",\"DRBG\",\"\"))))))),H21)","v":"DRBR13"},"Recopilar y analizar información, que permitan adoptar medidas de ordenación, administración y manejo.","DRBR13.1","Informe de análisis elaborados",null,"Eficacia",16,"Documento","Suma","Trimestral",4,4,4,4,"DIRECCIÓN REGIONAL BARRANQUILLA","Humanos, Físicos, Financieros, Tecnológicos"]
[null,null,null,null,"DIRECCIÓN REGIONAL BOGOTÁ","BOGOTÁ","3. GESTIÓN CON VALORES PARA RESULTADOS",14,"DRBG14","Realizar los tramites de  las solicitudes de permisos (comercialización, cultivo y procesamiento).","DRBG14.1","Gestión de solicitud de trámites de permisos de (comercialización, cultivo y procesamiento)",null,"Eficacia",1,"Trámites gestionados","Constante","Trimestral",1,1,1,1,"DIRECCIÓN REGIONAL BOGOTÁ","Humanos, Físicos, Financieros, Tecnológicos"]
[null,null,null,null,null,"BOGOTÁ","3. GESTIÓN CON VALORES PARA RESULTADOS",15,{"$f":"CONCATENATE(IF(E22=\"DIRECCIÓN REGIONAL CALI\",\"DRC\",IF(E22=\"DIRECCIÓN REGIONAL BARRANCA\",\"DRB\",IF(E22=\"DIRECCIÓN REGIONAL MEDELLÍN\",\"DRMD\",IF(E22=\"DIRECCIÓN REGIONAL MAGANGUÉ\",\"DRMG\",IF(E22=\"DIRECCIÓN REGIONAL BARRANQUILLA\",\"DRBR\",IF(E22=\"DIRECCIÓN REGIONAL VILLAVICENCIO\",\"DRV\",IF(E22=\"DIRECCIÓN REGIONAL BOGOTÁ\",\"DRBG\",\"\"))))))),H23)","v":"DRBG15"},"Expedir carnets de pesca artesanal y deportiva  y llevar registro de la actividad ","DRBG15.1","Carnet de pesca artesanal y deportiva expedidos",null,"Eficacia",1000,"Carnets de pesca artesanal","Suma","Trimestral",90,410,260,240,"DIRECCIÓN REGIONAL BOGOTÁ","Humanos, Físicos, Financieros, Tecnológicos"]
[null,null,null,null,"DIRECCIÓN REGIONAL CALI","CALI","3. GESTIÓN CON VALORES PARA RESULTADOS",16,"DRC16","Recepcionar, revisar  y tramitar  solicitudes para otorgar permisos  de pesca y acuicultura,  verificando el cumplimiento de los requisitos exigidos, (liquidación de tasas, notificación, informes, actividad empresarial, sanciones etc.).","DRC16.1","Revisión y tramite del 100% solicitudes recibidas para el otorgamiento y prorroga de permisos de pesca y acuicultura",null,"Eficacia",1,"Trámites gestionados","Constante","Trimestral",1,1,1,1,"DIRECCIÓN REGIONAL CALI","Humanos, Físicos, Financieros, Tecnológicos"]
[null,null,null,null,null,"CALI","3. GESTIÓN CON VALORES PARA RESULTADOS",17,{"$f":"CONCATENATE(IF(E24=\"DIRECCIÓN REGIONAL CALI\",\"DRC\",IF(E24=\"DIRECCIÓN REGIONAL BARRANCA\",\"DRB\",IF(E24=\"DIRECCIÓN REGIONAL MEDELLÍN\",\"DRMD\",IF(E24=\"DIRECCIÓN REGIONAL MAGANGUÉ\",\"DRMG\",IF(E24=\"DIRECCIÓN REGIONAL BARRANQUILLA\",\"DRBR\",IF(E24=\"DIRECCIÓN REGIONAL VILLAVICENCIO\",\"DRV\",IF(E24=\"DIRECCIÓN REGIONAL BOGOTÁ\",\"DRBG\",\"\"))))))),H25)","v":"DRC17"},"Realizar visitas de inspección ocular a establecimientos y moto naves para  el ejercicio de la actividad pesquera y acuícola","DRC17.1","Visitas de inspección ocular para el ejercicio de la actividad pesquera Y acuícola",null,"Eficacia",1,"Visitas","Constante","Trimestral",1,1,1,1,"DIRECCIÓN REGIONAL CALI","Humanos, Físicos, Financieros, Tecnológicos"]
[null,null,null,null,"DIRECCIÓN REGIONAL MAGANGUÉ","MAGANGUÉ","3. GESTIÓN CON VALORES PARA RESULTADOS",18,"DRMG18","Administrar y formalizar la actividad pesquera artesanal.","DRMG18.1","Permisos de pesca artesanal expedidos (carné de pesca)",null,"Eficacia",1800,"Carnets de pesca artesanal","Suma","Trimestral",360,360,540,540,"DIRECCIÓN REGIONAL MAGANGUÉ","Humanos, Físicos, Financieros, Tecnológicos"]
[null,null,null,null,"DIRECCIÓN REGIONAL MEDELLÍN","MEDELLÍN","3. GESTIÓN CON VALORES PARA RESULTADOS",19,"DRMD19","Realizar charlas de sensibilización para el proceso de implementación de medidas de salvoconducto o guía de movilización.","DRMD19.1","Charlas de sensibilización realizadas",null,"Eficacia",22,"Charlas","Suma","Trimestral",5,7,8,2,"DIRECCIÓN REGIONAL MEDELLÍN","Humanos, Físicos, Financieros, Tecnológicos"]
[null,null,null,null,null,"MEDELLÍN","3. GESTIÓN CON VALORES PARA RESULTADOS",20,{"$f":"CONCATENATE(IF(E27=\"DIRECCIÓN REGIONAL CALI\",\"DRC\",IF(E27=\"DIRECCIÓN REGIONAL BARRANCA\",\"DRB\",IF(E27=\"DIRECCIÓN REGIONAL MEDELLÍN\",\"DRMD\",IF(E27=\"DIRECCIÓN REGIONAL MAGANGUÉ\",\"DRMG\",IF(E27=\"DIRECCIÓN REGIONAL BARRANQUILLA\",\"DRBR\",IF(E27=\"DIRECCIÓN REGIONAL VILLAVICENCIO\",\"DRV\",IF(E27=\"DIRECCIÓN REGIONAL BOGOTÁ\",\"DRBG\",\"\"))))))),H28)","v":"DRMD20"},"Realizar los tramites de  las solicitudes de permisos (comercialización, cultivo y procesamiento)","DRMD20.1","Gestión de solicitud de trámites de permisos de (comercialización, cultivo y procesamiento)",null,"Eficacia",1,"Trámites gestionados","Constante","Trimestral",1,1,1,1,"DIRECCIÓN REGIONAL MEDELLÍN","Humanos, Físicos, Financieros, Tecnológicos"]
[null,null,null,null,null,"MEDELLÍN","3. GESTIÓN CON VALORES PARA RESULTADOS",21,{"$f":"CONCATENATE(IF(E27=\"DIRECCIÓN REGIONAL CALI\",\"DRC\",IF(E27=\"DIRECCIÓN REGIONAL BARRANCA\",\"DRB\",IF(E27=\"DIRECCIÓN REGIONAL MEDELLÍN\",\"DRMD\",IF(E27=\"DIRECCIÓN REGIONAL MAGANGUÉ\",\"DRMG\",IF(E27=\"DIRECCIÓN REGIONAL BARRANQUILLA\",\"DRBR\",IF(E27=\"DIRECCIÓN REGIONAL VILLAVICENCIO\",\"DRV\",IF(E27=\"DIRECCIÓN REGIONAL BOGOTÁ\",\"DRBG\",\"\"))))))),H29)","v":"DRMD21"},"Recopilar y analizar información, que permitan adoptar medidas de ordenación, administración y manejo, de las ZEPA, Atrato Golfo de Urabá y embalses","DRMD21.1","Informe de análisis elaborados",null,"Eficacia",4,"Documento","Suma","Trimestral",0,0,0,4,"DIRECCIÓN REGIONAL MEDELLÍN","Humanos, Físicos, Financieros, Tecnológicos"]
[null,null,null,null,"DIRECCIÓN REGIONAL VILLAVICENCIO","VILLAVICENCIO","3. GESTIÓN CON VALORES PARA RESULTADOS",22,"DRV22","Realizar los tramites de  las solicitudes de permisos (comercialización, cultivo y procesamiento)","DRV22.1","Gestión de solicitud de trámites de permisos de (comercialización, cultivo y procesamiento)",null,"Eficacia",1,"Trámites gestionados","Constante","Trimestral",1,1,1,1,"DIRECCIÓN REGIONAL VILLAVICENCIO","Humanos, Físicos, Financieros, Tecnológicos"]
[null,null,null,"Promover acciones orientadas al desarrollo productivo, competitivo y sostenible de la acuicultura","DIRECCIÓN REGIONAL BARRANCA","BARRANCA","3. GESTIÓN CON VALORES PARA RESULTADOS",23,"DRB23","Capacitar, socializar a la población objetivo en normatividad y procedimientos para el ejercicio de la actividad acuícola en toda su cadena.","DRB23.1","Personas capacitada en normatividad y procedimientos para el ejercicio de la acuicultura",null,"Eficacia",200,"Personas capacitadas","Suma","Trimestral",70,45,50,35,"DIRECCIÓN REGIONAL BARRANCA","Humanos, Físicos, Financieros, Tecnológicos"]
[null,null,null,null,"DIRECCIÓN REGIONAL BARRANQUILLA","BARRANQUILLA","3. GESTIÓN CON VALORES PARA RESULTADOS",24,{"$f":"CONCATENATE(IF(E32=\"DIRECCIÓN REGIONAL CALI\",\"DRC\",IF(E32=\"DIRECCIÓN REGIONAL BARRANCA\",\"DRB\",IF(E32=\"DIRECCIÓN REGIONAL MEDELLÍN\",\"DRMD\",IF(E32=\"DIRECCIÓN REGIONAL MAGANGUÉ\",\"DRMG\",IF(E32=\"DIRECCIÓN REGIONAL BARRANQUILLA\",\"DRBR\",IF(E32=\"DIRECCIÓN REGIONAL VILLAVICENCIO\",\"DRV\",IF(E32=\"DIRECCIÓN REGIONAL BOGOTÁ\",\"DRBG\",\"\"))))))),H32)","v":"DRBR24"},"Producir alevinos para fomentar la actividad pesquera y acuícola en el país.","DRBR24.1","Alevinos producidos a nivel nacional  en las estaciones y centros de la AUNAP",null,"Eficacia",14000000,"Producción Alevinos","Suma","Trimestral",2100000,4250000,4250000,3400000,"DIRECCIÓN REGIONAL BARRANQUILLA","Humanos, Físicos, Financieros, Tecnológicos"]
[null,null,null,null,null,"BARRANQUILLA","3. GESTIÓN CON VALORES PARA RESULTADOS",25,{"$f":"CONCATENATE(IF(E32=\"DIRECCIÓN REGIONAL CALI\",\"DRC\",IF(E32=\"DIRECCIÓN REGIONAL BARRANCA\",\"DRB\",IF(E32=\"DIRECCIÓN REGIONAL MEDELLÍN\",\"DRMD\",IF(E32=\"DIRECCIÓN REGIONAL MAGANGUÉ\",\"DRMG\",IF(E32=\"DIRECCIÓN REGIONAL BARRANQUILLA\",\"DRBR\",IF(E32=\"DIRECCIÓN REGIONAL VILLAVICENCIO\",\"DRV\",IF(E32=\"DIRECCIÓN REGIONAL BOGOTÁ\",\"DRBG\",\"\"))))))),H33)","v":"DRBR25"},"Capacitar, socializar a la población objetivo en normatividad y procedimientos para el ejercicio de la actividad acuícola en toda su cadena.","DRBR25.1","Personas capacitada en normatividad y procedimientos para el ejercicio de la acuicultura",null,"Eficacia",1500,"Personas capacitadas","Suma","Trimestral",200,450,450,400,"DIRECCIÓN REGIONAL BARRANQUILLA","Humanos, Físicos, Financieros, Tecnológicos"]
[null,null,null,null,null,"BARRANQUILLA","3. GESTIÓN CON VALORES PARA RESULTADOS",26,{"$f":"CONCATENATE(IF(E32=\"DIRECCIÓN REGIONAL CALI\",\"DRC\",IF(E32=\"DIRECCIÓN REGIONAL BARRANCA\",\"DRB\",IF(E32=\"DIRECCIÓN REGIONAL MEDELLÍN\",\"DRMD\",IF(E32=\"DIRECCIÓN REGIONAL MAGANGUÉ\",\"DRMG\",IF(E32=\"DIRECCIÓN REGIONAL BARRANQUILLA\",\"DRBR\",IF(E32=\"DIRECCIÓN REGIONAL VILLAVICENCIO\",\"DRV\",IF(E32=\"DIRECCIÓN REGIONAL BOGOTÁ\",\"DRBG\",\"\"))))))),H34)","v":"DRBR26"},"Implementar de energías alternativas en sistemas de producción acuícola ","DRBR26.1","Transferencia de tecnología y Proyectos implementados con energía alternativas",null,"Efectividad ",8,"Proyectos con implementación","Suma","Trimestral",0,2,3,3,"DIRECCIÓN REGIONAL BARRANQUILLA","Humanos, Físicos, Financieros, Tecnológicos"]
[null,null,null,null,null,"BARRANQUILLA","3. GESTIÓN CON VALORES PARA RESULTADOS",27,{"$f":"CONCATENATE(IF(E32=\"DIRECCIÓN REGIONAL CALI\",\"DRC\",IF(E32=\"DIRECCIÓN REGIONAL BARRANCA\",\"DRB\",IF(E32=\"DIRECCIÓN REGIONAL MEDELLÍN\",\"DRMD\",IF(E32=\"DIRECCIÓN REGIONAL MAGANGUÉ\",\"DRMG\",IF(E32=\"DIRECCIÓN REGIONAL BARRANQUILLA\",\"DRBR\",IF(E32=\"DIRECCIÓN REGIONAL VILLAVICENCIO\",\"DRV\",IF(E32=\"DIRECCIÓN REGIONAL BOGOTÁ\",\"DRBG\",\"\"))))))),H35)","v":"DRBR27"},"Realizar acciones de fomento a la acuicultura en toda su cadena a nivel Regional.","DRBR27.1","Personas capacitada en buenas practicas pesqueras (BPP) y buenas practicas de manufactura (BPM)",null,"Eficacia",800,"Personas capacitadas","Suma","Trimestral",100,250,250,200,"DIRECCIÓN REGIONAL BARRANQUILLA","Humanos, Físicos, Financieros, Tecnológicos"]
[null,null,null,null,null,"BARRANQUILLA","3. GESTIÓN CON VALORES PARA RESULTADOS",28,{"$f":"CONCATENATE(IF(E32=\"DIRECCIÓN REGIONAL CALI\",\"DRC\",IF(E32=\"DIRECCIÓN REGIONAL BARRANCA\",\"DRB\",IF(E32=\"DIRECCIÓN REGIONAL MEDELLÍN\",\"DRMD\",IF(E32=\"DIRECCIÓN REGIONAL MAGANGUÉ\",\"DRMG\",IF(E32=\"DIRECCIÓN REGIONAL BARRANQUILLA\",\"DRBR\",IF(E32=\"DIRECCIÓN REGIONAL VILLAVICENCIO\",\"DRV\",IF(E32=\"DIRECCIÓN REGIONAL BOGOTÁ\",\"DRBG\",\"\"))))))),H36)","v":"DRBR28"},"Capacitar, socializar la normatividad y procedimientos para el ejercicio de la actividad pesquera en toda su cadena.","DRBR28.1","Acciones de fomento desarrolladas a nivel Regional",null,"Eficacia",71,"Acciones de Fomento","Suma","Trimestral",0,10,31,30,"DIRECCIÓN REGIONAL BARRANQUILLA","Humanos, Físicos, Financieros, Tecnológicos"]
[null,null,null,null,"DIRECCIÓN REGIONAL BOGOTÁ","BOGOTÁ","3. GESTIÓN CON VALORES PARA RESULTADOS",29,"DRBG29","Producir alevinos para fomentar la actividad pesquera y acuícola","DRBG29.1","Alevinos producidos en la estación piscícola de Gigante Huila",null,"Eficacia",5600000,"Alevinos producidos","Suma","Trimestral",1300000,1400000,1500000,1400000,"DIRECCIÓN REGIONAL BOGOTÁ","Humanos, Físicos, Financieros, Tecnológicos"]
[null,null,null,null,null,"BOGOTÁ","3. GESTIÓN CON VALORES PARA RESULTADOS",30,{"$f":"CONCATENATE(IF(E37=\"DIRECCIÓN REGIONAL CALI\",\"DRC\",IF(E37=\"DIRECCIÓN REGIONAL BARRANCA\",\"DRB\",IF(E37=\"DIRECCIÓN REGIONAL MEDELLÍN\",\"DRMD\",IF(E37=\"DIRECCIÓN REGIONAL MAGANGUÉ\",\"DRMG\",IF(E37=\"DIRECCIÓN REGIONAL BARRANQUILLA\",\"DRBR\",IF(E37=\"DIRECCIÓN REGIONAL VILLAVICENCIO\",\"DRV\",IF(E37=\"DIRECCIÓN REGIONAL BOGOTÁ\",\"DRBG\",\"\"))))))),H38)","v":"DRBG30"},"Capacitar a organizaciones,  pequeños productores y pescadores","DRBG30.1","Capacitaciones efectuadas a organizaciones, pequeños productores y pescadores",null,"Eficacia",30,"Capacitaciones","Suma","Trimestral",8,5,8,4,"DIRECCIÓN REGIONAL BOGOTÁ","Humanos, Físicos, Financieros, Tecnológicos"]
[null,null,null,null,"DIRECCIÓN REGIONAL CALI","CALI","3. GESTIÓN CON VALORES PARA RESULTADOS",31,"DRC31","Capacitar, socializar a la población objetivo en normatividad y procedimientos para el ejercicio de la actividad acuícola en toda su cadena.","DRC31.1","Capacitaciones realizadas en normatividad y procedimientos para el ejercicio de la actividad acuícola en toda su cadena.",null,"Eficacia",46,"Capacitaciones","Suma","Trimestral",8,12,13,13,"DIRECCIÓN REGIONAL CALI","Humanos, Físicos, Financieros, Tecnológicos"]
[null,null,null,null,null,"CALI","3. GESTIÓN CON VALORES PARA RESULTADOS",32,{"$f":"CONCATENATE(IF(E39=\"DIRECCIÓN REGIONAL CALI\",\"DRC\",IF(E39=\"DIRECCIÓN REGIONAL BARRANCA\",\"DRB\",IF(E39=\"DIRECCIÓN REGIONAL MEDELLÍN\",\"DRMD\",IF(E39=\"DIRECCIÓN REGIONAL MAGANGUÉ\",\"DRMG\",IF(E39=\"DIRECCIÓN REGIONAL BARRANQUILLA\",\"DRBR\",IF(E39=\"DIRECCIÓN REGIONAL VILLAVICENCIO\",\"DRV\",IF(E39=\"DIRECCIÓN REGIONAL BOGOTÁ\",\"DRBG\",\"\"))))))),H40)","v":"DRC32"},"Caracterizar la actividad acuícola en la de la Región, mediante visitas a pequeños acuicultores.    ","DRC32.1","Visitas de caracterización a pequeños acuicultores realizadas.",null,"Eficacia",20,"Caracterización","Suma","Trimestral",5,5,5,5,"DIRECCIÓN REGIONAL CALI","Humanos, Físicos, Financieros, Tecnológicos"]
[null,null,null,null,"DIRECCIÓN REGIONAL MAGANGUÉ","MAGANGUÉ","3. GESTIÓN CON VALORES PARA RESULTADOS",33,"DRMG33","Asesorar, capacitar y fortalecer a productores AREL y AMyPE","DRMG33.1","Asistencia técnica brindada a productores AREL y AMyPE",null,"Eficacia",80,"Asistencia técnica","Suma","Trimestral",16,16,24,24,"DIRECCIÓN REGIONAL MAGANGUÉ","Humanos, Físicos, Financieros, Tecnológicos"]
[null,null,null,null,null,"MAGANGUÉ","3. GESTIÓN CON VALORES PARA RESULTADOS",34,{"$f":"CONCATENATE(IF(E41=\"DIRECCIÓN REGIONAL CALI\",\"DRC\",IF(E41=\"DIRECCIÓN REGIONAL BARRANCA\",\"DRB\",IF(E41=\"DIRECCIÓN REGIONAL MEDELLÍN\",\"DRMD\",IF(E41=\"DIRECCIÓN REGIONAL MAGANGUÉ\",\"DRMG\",IF(E41=\"DIRECCIÓN REGIONAL BARRANQUILLA\",\"DRBR\",IF(E41=\"DIRECCIÓN REGIONAL VILLAVICENCIO\",\"DRV\",IF(E41=\"DIRECCIÓN REGIONAL BOGOTÁ\",\"DRBG\",\"\"))))))),H42)","v":"DRMG34"},"Capacitar, socializar a la población objetivo en normatividad y procedimientos para el ejercicio de la actividad acuícola en toda su cadena.","DRMG34.1","Capacitaciones realizadas en normatividad y procedimientos para el ejercicio de la actividad acuicultura en toda su cadena.",null,"Eficacia",1500,"Personas","Suma","Trimestral",300,300,450,450,"DIRECCIÓN REGIONAL MAGANGUÉ","Humanos, Físicos, Financieros, Tecnológicos"]
[null,null,null,null,"DIRECCIÓN REGIONAL MEDELLÍN","MEDELLÍN","3. GESTIÓN CON VALORES PARA RESULTADOS",35,"DRMD35","Capacitar a la población de acuicultores de la Región en normatividad y procedimientos para el ejercicio de la actividad acuícola en toda su cadena.","DRMD35.1","Personas capacitada en normatividad y procedimientos para el ejercicio de la acuicultura",null,"Eficacia",400,"Personas capacitadas","Suma","Trimestral",70,120,70,140,"DIRECCIÓN REGIONAL MEDELLÍN","Humanos, Físicos, Financieros, Tecnológicos"]
[null,null,null,null,null,"MEDELLÍN","3. GESTIÓN CON VALORES PARA RESULTADOS",36,{"$f":"CONCATENATE(IF(E43=\"DIRECCIÓN REGIONAL CALI\",\"DRC\",IF(E43=\"DIRECCIÓN REGIONAL BARRANCA\",\"DRB\",IF(E43=\"DIRECCIÓN REGIONAL MEDELLÍN\",\"DRMD\",IF(E43=\"DIRECCIÓN REGIONAL MAGANGUÉ\",\"DRMG\",IF(E43=\"DIRECCIÓN REGIONAL BARRANQUILLA\",\"DRBR\",IF(E43=\"DIRECCIÓN REGIONAL VILLAVICENCIO\",\"DRV\",IF(E43=\"DIRECCIÓN REGIONAL BOGOTÁ\",\"DRBG\",\"\"))))))),H44)","v":"DRMD36"},"Desarrollar alianzas estratégicas institucionales, para promover el fortaleciendo del sector acuícola en la Región.","DRMD36.1","Alianzas estratégicas formalizadas para promover el fortalecimiento del sector acuícola en la Región.",null,"Eficacia",4,"Alianzas estratégicas formalizadas","Suma","Trimestral",1,1,1,1,"DIRECCIÓN REGIONAL MEDELLÍN","Humanos, Físicos, Financieros, Tecnológicos"]
[null,null,null,null,"DIRECCIÓN REGIONAL VILLAVICENCIO","VILLAVICENCIO","3. GESTIÓN CON VALORES PARA RESULTADOS",37,"DRV37","Capacitar, socializar a la población objetivo en normatividad y procedimientos para el ejercicio de la actividad acuícola en toda su cadena.","DRV37.1","Capacitaciones realizadas en normatividad y procedimientos para el ejercicio de la actividad acuícola en toda su cadena.",null,"Eficacia",13,"Capacitaciones","Suma","Trimestral",1,4,4,4,"DIRECCIÓN REGIONAL VILLAVICENCIO","Humanos, Físicos, Financieros, Tecnológicos"]
[null,null,null,null,null,"VILLAVICENCIO","3. GESTIÓN CON VALORES PARA RESULTADOS",38,{"$f":"CONCATENATE(IF(E45=\"DIRECCIÓN REGIONAL CALI\",\"DRC\",IF(E45=\"DIRECCIÓN REGIONAL BARRANCA\",\"DRB\",IF(E45=\"DIRECCIÓN REGIONAL MEDELLÍN\",\"DRMD\",IF(E45=\"DIRECCIÓN REGIONAL MAGANGUÉ\",\"DRMG\",IF(E45=\"DIRECCIÓN REGIONAL BARRANQUILLA\",\"DRBR\",IF(E45=\"DIRECCIÓN REGIONAL VILLAVICENCIO\",\"DRV\",IF(E45=\"DIRECCIÓN REGIONAL BOGOTÁ\",\"DRBG\",\"\"))))))),H46)","v":"DRV38"},"Realizar acciones de fomento a la acuicultura en toda su cadena a nivel nacional.","DRV38.1","Asistencia técnica brindada a proyectos productivos de acuicultura.",null,"Eficacia",52,"Asistencia técnica","Suma","Trimestral",5,15,16,16,"DIRECCIÓN REGIONAL VILLAVICENCIO","Humanos, Físicos, Financieros, Tecnológicos"]
[null,null,null,"Promover acciones orientadas al desarrollo productivo, competitivo y sostenible de la pesca artesanal","DIRECCIÓN REGIONAL BARRANCA","BARRANCA","3. GESTIÓN CON VALORES PARA RESULTADOS",39,"DRB39","Capacitar, socializar la normatividad y procedimientos para el ejercicio de la actividad pesquera en toda su cadena.","DRB39.1","Personas capacitadas en buenas practicas pesqueras (BPP) y buenas practicas de manufactura (BPM)",null,"Eficacia",500,"Personas capacitadas","Suma","Trimestral",80,120,150,150,"DIRECCIÓN REGIONAL BARRANCA","Humanos, Físicos, Financieros, Tecnológicos"]
[null,null,null,null,null,"BARRANCA","3. GESTIÓN CON VALORES PARA RESULTADOS",40,{"$f":"CONCATENATE(IF(E47=\"DIRECCIÓN REGIONAL CALI\",\"DRC\",IF(E47=\"DIRECCIÓN REGIONAL BARRANCA\",\"DRB\",IF(E47=\"DIRECCIÓN REGIONAL MEDELLÍN\",\"DRMD\",IF(E47=\"DIRECCIÓN REGIONAL MAGANGUÉ\",\"DRMG\",IF(E47=\"DIRECCIÓN REGIONAL BARRANQUILLA\",\"DRBR\",IF(E47=\"DIRECCIÓN REGIONAL VILLAVICENCIO\",\"DRV\",IF(E47=\"DIRECCIÓN REGIONAL BOGOTÁ\",\"DRBG\",\"\"))))))),H48)","v":"DRB40"},"Fortalecer y formalizar la actividad pesquera artesanal de la región",{"$f":"CONCATENATE(I48,\".\",\"1\")","v":"DRB40.1"},"Permisos de pesca comercial artesanal expedidos",null,"Eficacia",600,"Permisos de pesca artesanal","Suma","Trimestral",100,130,250,120,"DIRECCIÓN REGIONAL BARRANCA","Humanos, Físicos, Financieros, Tecnológicos"]
[null,null,null,null,"DIRECCIÓN REGIONAL BARRANQUILLA","BARRANQUILLA","3. GESTIÓN CON VALORES PARA RESULTADOS",41,"DRBR41","Entregar artes y aparejos reglamentarias como sustitución de artes ilegales para generar alternativas de conservación y sostenibilidad del recurso ","DRBR41.1","Artes y aparejo de pesca entregados ",null,"Eficacia",2000,"Artes y aparejos entregado ","Suma","Trimestral",100,500,700,700,"DIRECCIÓN REGIONAL BARRANQUILLA","Humanos, Físicos, Financieros, Tecnológicos"]
[null,null,null,null,null,"BARRANQUILLA","3. GESTIÓN CON VALORES PARA RESULTADOS",42,{"$f":"CONCATENATE(IF(E49=\"DIRECCIÓN REGIONAL CALI\",\"DRC\",IF(E49=\"DIRECCIÓN REGIONAL BARRANCA\",\"DRB\",IF(E49=\"DIRECCIÓN REGIONAL MEDELLÍN\",\"DRMD\",IF(E49=\"DIRECCIÓN REGIONAL MAGANGUÉ\",\"DRMG\",IF(E49=\"DIRECCIÓN REGIONAL BARRANQUILLA\",\"DRBR\",IF(E49=\"DIRECCIÓN REGIONAL VILLAVICENCIO\",\"DRV\",IF(E49=\"DIRECCIÓN REGIONAL BOGOTÁ\",\"DRBG\",\"\"))))))),H50)","v":"DRBR42"},"Dotar de equipos y elementos para el desarrollo de la pesca como: Embarcaciones, enfriadores, maquina de hielo con energías alternativas , kit de seguridad, motores, equipos de georreferenciación, entregados","DRBR42.1","Equipos y elementos entregados para el desarrollo de la actividad pesquera.",null,"Efectividad ",300,"Elementos y equipos","Suma","Trimestral",10,100,100,90,"DIRECCIÓN REGIONAL BARRANQUILLA","Humanos, Físicos, Financieros, Tecnológicos"]
[null,null,null,null,null,"BARRANQUILLA","3. GESTIÓN CON VALORES PARA RESULTADOS",43,{"$f":"CONCATENATE(IF(E49=\"DIRECCIÓN REGIONAL CALI\",\"DRC\",IF(E49=\"DIRECCIÓN REGIONAL BARRANCA\",\"DRB\",IF(E49=\"DIRECCIÓN REGIONAL MEDELLÍN\",\"DRMD\",IF(E49=\"DIRECCIÓN REGIONAL MAGANGUÉ\",\"DRMG\",IF(E49=\"DIRECCIÓN REGIONAL BARRANQUILLA\",\"DRBR\",IF(E49=\"DIRECCIÓN REGIONAL VILLAVICENCIO\",\"DRV\",IF(E49=\"DIRECCIÓN REGIONAL BOGOTÁ\",\"DRBG\",\"\"))))))),H51)","v":"DRBR43"},"Fomentar la Pesca Deportiva en la Región, a través del desarrollo de torneos.","DRBR43.1","Torneos de Circuito de Pesca Deportiva PEZCARIBE realizados",null,"Efectividad ",4,"Torneos de Circuito de Pesca","Suma","Trimestral",1,1,1,1,"DIRECCIÓN REGIONAL BARRANQUILLA","Humanos, Físicos, Financieros, Tecnológicos"]
[null,null,null,null,null,"BARRANQUILLA","3. GESTIÓN CON VALORES PARA RESULTADOS",44,{"$f":"CONCATENATE(IF(E49=\"DIRECCIÓN REGIONAL CALI\",\"DRC\",IF(E49=\"DIRECCIÓN REGIONAL BARRANCA\",\"DRB\",IF(E49=\"DIRECCIÓN REGIONAL MEDELLÍN\",\"DRMD\",IF(E49=\"DIRECCIÓN REGIONAL MAGANGUÉ\",\"DRMG\",IF(E49=\"DIRECCIÓN REGIONAL BARRANQUILLA\",\"DRBR\",IF(E49=\"DIRECCIÓN REGIONAL VILLAVICENCIO\",\"DRV\",IF(E49=\"DIRECCIÓN REGIONAL BOGOTÁ\",\"DRBG\",\"\"))))))),H52)","v":"DRBR44"},"Implementar energías alternativas para la pesca marítima ","DRBR44.1","Embarcaciones con Implantación de energías alternativas para pesca artesanal marítima ",null,"Efectividad ",150,"Embarcaciones con implementación","Suma","Trimestral",30,40,40,40,"DIRECCIÓN REGIONAL BARRANQUILLA","Humanos, Físicos, Financieros, Tecnológicos"]
[null,null,null,null,null,"BARRANQUILLA","3. GESTIÓN CON VALORES PARA RESULTADOS",45,{"$f":"CONCATENATE(IF(E49=\"DIRECCIÓN REGIONAL CALI\",\"DRC\",IF(E49=\"DIRECCIÓN REGIONAL BARRANCA\",\"DRB\",IF(E49=\"DIRECCIÓN REGIONAL MEDELLÍN\",\"DRMD\",IF(E49=\"DIRECCIÓN REGIONAL MAGANGUÉ\",\"DRMG\",IF(E49=\"DIRECCIÓN REGIONAL BARRANQUILLA\",\"DRBR\",IF(E49=\"DIRECCIÓN REGIONAL VILLAVICENCIO\",\"DRV\",IF(E49=\"DIRECCIÓN REGIONAL BOGOTÁ\",\"DRBG\",\"\"))))))),H53)","v":"DRBR45"},"Construir y adecuar Centros de Desarrollo Integral de Pesca Artesanal (CDPA)","DRBR45.1","Centros de desarrollo integral de pesca artesanal   construidos y/o adecuados",null,"Efectividad ",2,"CDPA","Suma","Trimestral",0,1,1,0,"DIRECCIÓN REGIONAL BARRANQUILLA","Humanos, Físicos, Financieros, Tecnológicos"]
[null,null,null,null,null,"BARRANQUILLA","3. GESTIÓN CON VALORES PARA RESULTADOS",46,{"$f":"CONCATENATE(IF(E49=\"DIRECCIÓN REGIONAL CALI\",\"DRC\",IF(E49=\"DIRECCIÓN REGIONAL BARRANCA\",\"DRB\",IF(E49=\"DIRECCIÓN REGIONAL MEDELLÍN\",\"DRMD\",IF(E49=\"DIRECCIÓN REGIONAL MAGANGUÉ\",\"DRMG\",IF(E49=\"DIRECCIÓN REGIONAL BARRANQUILLA\",\"DRBR\",IF(E49=\"DIRECCIÓN REGIONAL VILLAVICENCIO\",\"DRV\",IF(E49=\"DIRECCIÓN REGIONAL BOGOTÁ\",\"DRBG\",\"\"))))))),H54)","v":"DRBR46"},"Realizar censo de embarcaciones  e implementación de chip de monitoreo como medida de ordenación pesquera para contrarrestar la pesca ilegal","DRBR46.1","Censo de embarcaciones efectuados ",null,"Efectividad ",1,"Censo","Suma","Trimestral",0,0,1,0,"DIRECCIÓN REGIONAL BARRANQUILLA","Humanos, Físicos, Financieros, Tecnológicos"]
[null,null,null,null,"DIRECCIÓN REGIONAL CALI","CALI","3. GESTIÓN CON VALORES PARA RESULTADOS",47,"DRC47","Capacitar, socializar la normatividad y procedimientos para el ejercicio de la actividad pesquera.","DRC47.1","Personas capacitada en buenas practicas pesqueras (BPP) y buenas practicas de manufactura (BPM)",null,"Eficacia",74,"Capacitaciones","Suma","Trimestral",14,20,20,20,"DIRECCIÓN REGIONAL CALI","Humanos, Físicos, Financieros, Tecnológicos"]
[null,null,null,null,null,"CALI","3. GESTIÓN CON VALORES PARA RESULTADOS",48,{"$f":"CONCATENATE(IF(E55=\"DIRECCIÓN REGIONAL CALI\",\"DRC\",IF(E55=\"DIRECCIÓN REGIONAL BARRANCA\",\"DRB\",IF(E55=\"DIRECCIÓN REGIONAL MEDELLÍN\",\"DRMD\",IF(E55=\"DIRECCIÓN REGIONAL MAGANGUÉ\",\"DRMG\",IF(E55=\"DIRECCIÓN REGIONAL BARRANQUILLA\",\"DRBR\",IF(E55=\"DIRECCIÓN REGIONAL VILLAVICENCIO\",\"DRV\",IF(E55=\"DIRECCIÓN REGIONAL BOGOTÁ\",\"DRBG\",\"\"))))))),H56)","v":"DRC48"},"Caracterizar las artes de pesca y aparejos no reglamentarios de los pescadores de la Región.","DRC48.1","caracterización de comunidades donde se utilizan artes no reglamentarias.",null,"Eficacia",6,"Caracterización","Suma","Trimestral",1,2,1,2,"DIRECCIÓN REGIONAL CALI","Humanos, Físicos, Financieros, Tecnológicos"]
[null,null,null,null,null,"CALI","3. GESTIÓN CON VALORES PARA RESULTADOS",49,{"$f":"CONCATENATE(IF(E55=\"DIRECCIÓN REGIONAL CALI\",\"DRC\",IF(E55=\"DIRECCIÓN REGIONAL BARRANCA\",\"DRB\",IF(E55=\"DIRECCIÓN REGIONAL MEDELLÍN\",\"DRMD\",IF(E55=\"DIRECCIÓN REGIONAL MAGANGUÉ\",\"DRMG\",IF(E55=\"DIRECCIÓN REGIONAL BARRANQUILLA\",\"DRBR\",IF(E55=\"DIRECCIÓN REGIONAL VILLAVICENCIO\",\"DRV\",IF(E55=\"DIRECCIÓN REGIONAL BOGOTÁ\",\"DRBG\",\"\"))))))),H57)","v":"DRC49"},"Sustituir y entregar artes y aparejos no reglamentarias, para generar alternativas en épocas de veda y de conservación y sostenibilidad de recursos. ","DRC49.1","Artes y aparejos reglamentarias entregadas",null,"Eficacia",40,"Artes de pesca","Suma","Anual",0,0,20,20,"DIRECCIÓN REGIONAL CALI","Humanos, Físicos, Financieros, Tecnológicos"]
[null,null,null,null,"DIRECCIÓN REGIONAL MAGANGUÉ","MAGANGUÉ","3. GESTIÓN CON VALORES PARA RESULTADOS",50,"DRMG50","Asesorar, capacitar y fortalecer asociaciones de pescadores artesanales","DRMG50.1","Capacitaciones realizadas a pescadores artesanales en normatividad pesquera.",null,"Eficacia",40,"Capacitaciones","Suma","Trimestral",8,8,12,12,"DIRECCIÓN REGIONAL MAGANGUÉ","Humanos, Físicos, Financieros, Tecnológicos"]
[null,null,null,null,null,"MAGANGUÉ","3. GESTIÓN CON VALORES PARA RESULTADOS",51,{"$f":"CONCATENATE(IF(E58=\"DIRECCIÓN REGIONAL CALI\",\"DRC\",IF(E58=\"DIRECCIÓN REGIONAL BARRANCA\",\"DRB\",IF(E58=\"DIRECCIÓN REGIONAL MEDELLÍN\",\"DRMD\",IF(E58=\"DIRECCIÓN REGIONAL MAGANGUÉ\",\"DRMG\",IF(E58=\"DIRECCIÓN REGIONAL BARRANQUILLA\",\"DRBR\",IF(E58=\"DIRECCIÓN REGIONAL VILLAVICENCIO\",\"DRV\",IF(E58=\"DIRECCIÓN REGIONAL BOGOTÁ\",\"DRBG\",\"\"))))))),H59)","v":"DRMG51"},"Realizar actividades alternativas en épocas de veda","DRMG51.1","Ejecución de actividades alternativas en época de veda",null,"Eficacia",4,"Actividades","Suma","Trimestral",0.8,0.8,1.2,1.2,"DIRECCIÓN REGIONAL MAGANGUÉ","Humanos, Físicos, Financieros, Tecnológicos"]
[null,null,null,null,"DIRECCIÓN REGIONAL MEDELLÍN","MEDELLÍN","3. GESTIÓN CON VALORES PARA RESULTADOS",52,"DRMD52","Capacitar, socializar la normatividad y procedimientos para el ejercicio de la actividad pesquera en toda su cadena.","DRMD52.1","Personas capacitada en buenas practicas pesqueras (BPP) y buenas practicas de manufactura (BPM)",null,"Eficacia",400,"Personas capacitadas","Suma","Trimestral",100,100,100,100,"DIRECCIÓN REGIONAL MEDELLÍN","Humanos, Físicos, Financieros, Tecnológicos"]
[null,null,null,null,"DIRECCIÓN REGIONAL VILLAVICENCIO","VILLAVICENCIO","3. GESTIÓN CON VALORES PARA RESULTADOS",53,"DRV53","Capacitar, socializar la normatividad y procedimientos para el ejercicio de la actividad pesquera en toda su cadena.","DRV53.1","Jornadas de sensibilización y socialización realizadas para el ejercicio de la actividad pesquera en toda su cadena.",null,"Eficacia",106,"Jornadas de sensibilización y/o socialización","Suma","Trimestral",10,32,32,32,"DIRECCIÓN REGIONAL MEDELLÍN","Humanos, Físicos, Financieros, Tecnológicos"]
[null,"3.  Lograr la aplicación de las medidas de ordenación por parte de la comunidad para el desarrollo de la actividad  pesquera y de la acuicultura en el territorio nacional ","Desarrollo y ejecución de actividades de inspección y vigilancia de los recursos pesqueros y de la acuicultura a nivel nacional","Sensibilizar a la población sobre la normatividad y de las medidas de ordenación de los recursos pesqueros y acuícolas del país","DIRECCIÓN REGIONAL BARRANCA","BARRANCA","3. GESTIÓN CON VALORES PARA RESULTADOS",54,"DRB54","Capacitar a la población dedicada a la actividad pesquera, en normatividad y medidas de ordenación de actividad de pesca y acuicultura en Colombia.","DRB54.1","Capacitaciones efectuadas en normatividad y medidas de inspección y vigilancia de la actividad pesquera y acuícola",null,"Eficacia",50,"Capacitaciones","suma","Trimestral",5,18,17,10,"DIRECCIÓN REGIONAL BARRANCA","Humanos, Físicos, Financieros, Tecnológicos"]
[null,null,null,null,null,"BARRANCA","3. GESTIÓN CON VALORES PARA RESULTADOS",55,{"$f":"CONCATENATE(IF(E62=\"DIRECCIÓN REGIONAL CALI\",\"DRC\",IF(E62=\"DIRECCIÓN REGIONAL BARRANCA\",\"DRB\",IF(E62=\"DIRECCIÓN REGIONAL MEDELLÍN\",\"DRMD\",IF(E62=\"DIRECCIÓN REGIONAL MAGANGUÉ\",\"DRMG\",IF(E62=\"DIRECCIÓN REGIONAL BARRANQUILLA\",\"DRBR\",IF(E62=\"DIRECCIÓN REGIONAL VILLAVICENCIO\",\"DRV\",IF(E62=\"DIRECCIÓN REGIONAL BOGOTÁ\",\"DRBG\",\"\"))))))),H63)","v":"DRB55"},"Desarrollar campaña de divulgación y  promoción a nivel nacional sobre normatividad de la pesca y acuicultura.","DRB55.1","Campaña de divulgación y promoción a nivel regional  sobre normatividad de pesca y acuicultura, a través de medios escritos y hablados previa aprobación de la Dirección General.",null,"Eficacia",20,"Campañas","Suma","Trimestral",2,8,7,3,"DIRECCIÓN REGIONAL BARRANCA","Humanos, Físicos, Financieros, Tecnológicos"]
[null,null,null,null,"DIRECCIÓN REGIONAL BARRANQUILLA","BARRANQUILLA","3. GESTIÓN CON VALORES PARA RESULTADOS",56,"DRBR56","Capacitar a la población dedicada a la actividad pesquera, en normatividad y medidas de ordenación de actividad de pesca y acuicultura en Colombia.","DRBR56.1","Capacitaciones efectuadas en normatividad y medidas de inspección y vigilancia de la actividad pesquera y acuícola",null,"Eficacia",150,"Capacitaciones","Suma","Trimestral",10,60,60,20,"DIRECCIÓN REGIONAL BARRANQUILLA","Humanos, Físicos, Financieros, Tecnológicos"]
[null,null,null,null,"DIRECCIÓN REGIONAL BOGOTÁ","BOGOTÁ","3. GESTIÓN CON VALORES PARA RESULTADOS",57,"DRBG57","Realizar  talleres y charlas sobre la normatividad  pesquera  a diferentes usuarios y con énfasis en  el aprovechamiento sostenible de la actividad , tallas mínimas,  vedas y medidas de manejo ","DRBG57.1","Talleres y charlas realizados sobre normatividad pesquera. ",null,"Eficacia",15,"Talleres y charlas","Suma","Trimestral",3,3,5,4,"DIRECCIÓN REGIONAL BOGOTÁ","Humanos, Físicos, Financieros, Tecnológicos"]
[null,null,null,null,null,"BOGOTÁ","3. GESTIÓN CON VALORES PARA RESULTADOS",58,{"$f":"CONCATENATE(IF(E65=\"DIRECCIÓN REGIONAL CALI\",\"DRC\",IF(E65=\"DIRECCIÓN REGIONAL BARRANCA\",\"DRB\",IF(E65=\"DIRECCIÓN REGIONAL MEDELLÍN\",\"DRMD\",IF(E65=\"DIRECCIÓN REGIONAL MAGANGUÉ\",\"DRMG\",IF(E65=\"DIRECCIÓN REGIONAL BARRANQUILLA\",\"DRBR\",IF(E65=\"DIRECCIÓN REGIONAL VILLAVICENCIO\",\"DRV\",IF(E65=\"DIRECCIÓN REGIONAL BOGOTÁ\",\"DRBG\",\"\"))))))),H66)","v":"DRBG58"},"Realizar actividades de capacitación y divulgación de la normatividad acuícola y pesquera con  autoridades civiles y militares ","DRBG58.1","Capacitaciones efectuadas para la divulgación de normatividad pesquera con autoridades civiles y militares.",null,"Eficacia",20,"Capacitaciones","Suma","Trimestral",4,6,5,5,"DIRECCIÓN REGIONAL BOGOTÁ","Humanos, Físicos, Financieros, Tecnológicos"]
[null,null,null,null,"DIRECCIÓN REGIONAL CALI","CALI","3. GESTIÓN CON VALORES PARA RESULTADOS",59,"DRC59","Realizar  talleres y charlas sobre la normatividad  pesquera  a diferentes usuarios y con énfasis en  el aprovechamiento sostenible del recurso pesquero.","DRC59.1","Charlas de sensibilización sobre medidas ordenamiento al sector pesquero y acuícola",null,"Eficacia",48,"Charlas","Suma","Trimestral",10,12,13,13,"DIRECCIÓN REGIONAL CALI","Humanos, Físicos, Financieros, Tecnológicos"]
[null,null,null,null,"DIRECCIÓN REGIONAL MEDELLÍN","MEDELLÍN","3. GESTIÓN CON VALORES PARA RESULTADOS",60,"DRMD60","Capacitar a la población dedicada a la actividad pesquera y acuícola, en normatividad y medidas de ordenación de actividad de pesca y acuicultura en Colombia.","DRMD60.1","Capacitaciones efectuadas en normatividad y medidas de inspección y vigilancia de la actividad pesquera y acuícola",null,"Eficacia",20,"Eventos de capacitación","Suma","Trimestral",0,10,10,0,"DIRECCIÓN REGIONAL MEDELLÍN","Humanos, Físicos, Financieros, Tecnológicos"]
[null,null,null,null,null,"MEDELLÍN","3. GESTIÓN CON VALORES PARA RESULTADOS",61,{"$f":"CONCATENATE(IF(E68=\"DIRECCIÓN REGIONAL CALI\",\"DRC\",IF(E68=\"DIRECCIÓN REGIONAL BARRANCA\",\"DRB\",IF(E68=\"DIRECCIÓN REGIONAL MEDELLÍN\",\"DRMD\",IF(E68=\"DIRECCIÓN REGIONAL MAGANGUÉ\",\"DRMG\",IF(E68=\"DIRECCIÓN REGIONAL BARRANQUILLA\",\"DRBR\",IF(E68=\"DIRECCIÓN REGIONAL VILLAVICENCIO\",\"DRV\",IF(E68=\"DIRECCIÓN REGIONAL BOGOTÁ\",\"DRBG\",\"\"))))))),H69)","v":"DRMD61"},"Desarrollar campañas de divulgación y  promoción a nivel nacional sobre normatividad de la pesca y acuicultura.","DRMD61.1","Campañas de divulgación y promoción a nivel nacional, sobre normatividad de pesca y acuicultura",null,"Eficacia",20,"Campaña","Suma","Trimestral",4,5,5,6,"DIRECCIÓN REGIONAL MEDELLÍN","Humanos, Físicos, Financieros, Tecnológicos"]
[null,null,null,null,"DIRECCIÓN REGIONAL VILLAVICENCIO","VILLAVICENCIO","3. GESTIÓN CON VALORES PARA RESULTADOS",62,{"$f":"CONCATENATE(IF(E70=\"DIRECCIÓN REGIONAL CALI\",\"DRC\",IF(E70=\"DIRECCIÓN REGIONAL BARRANCA\",\"DRB\",IF(E70=\"DIRECCIÓN REGIONAL MEDELLÍN\",\"DRMD\",IF(E70=\"DIRECCIÓN REGIONAL MAGANGUÉ\",\"DRMG\",IF(E70=\"DIRECCIÓN REGIONAL BARRANQUILLA\",\"DRBR\",IF(E70=\"DIRECCIÓN REGIONAL VILLAVICENCIO\",\"DRV\",IF(E70=\"DIRECCIÓN REGIONAL BOGOTÁ\",\"DRBG\",\"\"))))))),H70)","v":"DRV62"},"Desarrollar actividades orientadas a sensibilizar a la población dedicada a la actividad pesquera y la acuicultura, en normatividad y medidas de ordenación de la pesca y acuicultura en Colombia.",{"$f":"CONCATENATE(I70,\".\",\"1\")","v":"DRV62.1"},"Eventos de sensibilización sobre la importancia del aprovechamiento sostenible del recursos pesquero, y la normatividad para el ejercicio de la actividad.",null,"Eficacia",24,"Eventos","Suma","Trimestral",0,24,0,0,"DIRECCIÓN REGIONAL VILLAVICENCIO","Humanos, Físicos, Financieros, Tecnológicos"]
[null,null,null,"Definir mecanismos eficientes de seguimiento y control para combatir la pesca ilegal no declara y no reglamentada- (INN) en el territorio nacional.","DIRECCIÓN REGIONAL BARRANCA","BARRANCA","3. GESTIÓN CON VALORES PARA RESULTADOS",63,"DRB63","Realizar operativos de inspección y vigilancia a la comercialización de productos pesqueros de consumo en establecimientos comerciales.","DRB63.1","Operativos realizados en establecimientos comerciales (EC).",null,"Eficacia",80,"Operativos de control y vigilancia","Suma","Trimestral",10,20,25,25,"DIRECCIÓN REGIONAL BARRANCA","Humanos, Físicos, Financieros, Tecnológicos"]
[null,null,null,null,null,"BARRANCA","3. GESTIÓN CON VALORES PARA RESULTADOS",64,{"$f":"CONCATENATE(IF(E71=\"DIRECCIÓN REGIONAL CALI\",\"DRC\",IF(E71=\"DIRECCIÓN REGIONAL BARRANCA\",\"DRB\",IF(E71=\"DIRECCIÓN REGIONAL MEDELLÍN\",\"DRMD\",IF(E71=\"DIRECCIÓN REGIONAL MAGANGUÉ\",\"DRMG\",IF(E71=\"DIRECCIÓN REGIONAL BARRANQUILLA\",\"DRBR\",IF(E71=\"DIRECCIÓN REGIONAL VILLAVICENCIO\",\"DRV\",IF(E71=\"DIRECCIÓN REGIONAL BOGOTÁ\",\"DRBG\",\"\"))))))),H72)","v":"DRB64"},"Realizar operativos de inspección y vigilancia a la actividad acuícola.","DRB64.1","Operativos realizados en predios con actividad acuícola (PA)",null,"Eficacia",20,"Operativos de control y vigilancia","Suma","Trimestral",5,5,5,5,"DIRECCIÓN REGIONAL BARRANCA","Humanos, Físicos, Financieros, Tecnológicos"]
[null,null,null,null,null,"BARRANCA","3. GESTIÓN CON VALORES PARA RESULTADOS",65,{"$f":"CONCATENATE(IF(E71=\"DIRECCIÓN REGIONAL CALI\",\"DRC\",IF(E71=\"DIRECCIÓN REGIONAL BARRANCA\",\"DRB\",IF(E71=\"DIRECCIÓN REGIONAL MEDELLÍN\",\"DRMD\",IF(E71=\"DIRECCIÓN REGIONAL MAGANGUÉ\",\"DRMG\",IF(E71=\"DIRECCIÓN REGIONAL BARRANQUILLA\",\"DRBR\",IF(E71=\"DIRECCIÓN REGIONAL VILLAVICENCIO\",\"DRV\",IF(E71=\"DIRECCIÓN REGIONAL BOGOTÁ\",\"DRBG\",\"\"))))))),H73)","v":"DRB65"},"Realizar operativos de inspección y vigilancia a la pesca artesanal.","DRB65.1","Operativos de control a pescadores artesanales en puertos de desembarco y lugares de pesca",null,"Eficacia",50,"Operativos de control y vigilancia","Suma","Trimestral",10,19,15,6,"DIRECCIÓN REGIONAL BARRANCA","Humanos, Físicos, Financieros, Tecnológicos"]
[null,null,null,null,"DIRECCIÓN REGIONAL BARRANQUILLA","BARRANQUILLA","3. GESTIÓN CON VALORES PARA RESULTADOS",66,"DRBR66","Verificar el cumplimiento de la normatividad pesquera y acuícola en el país.","DRBR66.1","Operativos de control a la actividad pesquera y acuicultura realizados a nivel nacional",null,"Eficacia",300,"Operativos de control y vigilancia","Suma","Trimestral",30,100,120,50,"DIRECCIÓN REGIONAL BARRANQUILLA","Humanos, Físicos, Financieros, Tecnológicos"]
[null,null,null,null,null,"BARRANQUILLA","3. GESTIÓN CON VALORES PARA RESULTADOS",67,{"$f":"CONCATENATE(IF(E74=\"DIRECCIÓN REGIONAL CALI\",\"DRC\",IF(E74=\"DIRECCIÓN REGIONAL BARRANCA\",\"DRB\",IF(E74=\"DIRECCIÓN REGIONAL MEDELLÍN\",\"DRMD\",IF(E74=\"DIRECCIÓN REGIONAL MAGANGUÉ\",\"DRMG\",IF(E74=\"DIRECCIÓN REGIONAL BARRANQUILLA\",\"DRBR\",IF(E74=\"DIRECCIÓN REGIONAL VILLAVICENCIO\",\"DRV\",IF(E74=\"DIRECCIÓN REGIONAL BOGOTÁ\",\"DRBG\",\"\"))))))),H75)","v":"DRBR67"},"Actualizar las bases de datos para el seguimiento de los permisionarios (RGP)","DRBR67.1","Base de datos de Registro General de Pesca actualizada.",null,"Eficacia",4,"Bases de datos","Suma","Trimestral",1,1,1,1,"DIRECCIÓN REGIONAL BARRANQUILLA","Humanos, Físicos, Financieros, Tecnológicos"]
[null,null,null,null,"DIRECCIÓN REGIONAL BOGOTÁ","BOGOTÁ","3. GESTIÓN CON VALORES PARA RESULTADOS",68,"DRBG68","Realizar operativos de control y vigilancia de la actividad pesquera y acuícola.","DRBG68.1","Operativos de control y vigilancia realizados",null,"Eficacia",180,"Operativos de control y vigilancia","Suma","Trimestral",23,60,50,47,"DIRECCIÓN REGIONAL BOGOTÁ","Humanos, Físicos, Financieros, Tecnológicos"]
[null,null,null,null,"DIRECCIÓN REGIONAL CALI","CALI","3. GESTIÓN CON VALORES PARA RESULTADOS",69,"DRC69","Verificar el cumplimiento de  la normatividad pesquera y acuícola en:(Centros de acopio, Puntos de venta, Plazas principales, Muelles de desembarque, Aeropuertos, Vías terrestres y fluviales (incluidos cuerpos de agua) de la regional.","DRC69.1","Operativos de control y vigilancia realizados",null,"Eficacia",214,"Operativos de control y vigilancia","Suma","Trimestral",56,54,60,44,"DIRECCIÓN REGIONAL CALI","Humanos, Físicos, Financieros, Tecnológicos"]
[null,null,null,null,"DIRECCIÓN REGIONAL MAGANGUÉ","MAGANGUÉ","3. GESTIÓN CON VALORES PARA RESULTADOS",70,"DRMG70","Realizar operativos de control y vigilancia de la actividad pesquera y acuícola a nivel nacional","DRMG70.1","Operativos de control y vigilancia realizados",null,"Eficacia",200,"Operativos de control y vigilancia","Suma","Trimestral",40,40,60,60,"DIRECCIÓN REGIONAL MAGANGUÉ","Humanos, Físicos, Financieros, Tecnológicos"]
[null,null,null,null,"DIRECCIÓN REGIONAL MEDELLÍN","MEDELLÍN","3. GESTIÓN CON VALORES PARA RESULTADOS",71,"DRMD71","Verificar el cumplimiento de la normatividad pesquera y acuícola en la Región.","DRMD71.1","Operativos de control y vigilancia realizados",null,"Eficacia",450,"Operativos de control y vigilancia","Suma","Trimestral",84,141,142,83,"DIRECCIÓN REGIONAL MEDELLÍN","Humanos, Físicos, Financieros, Tecnológicos"]
[null,null,null,null,"DIRECCIÓN REGIONAL VILLAVICENCIO","VILLAVICENCIO","3. GESTIÓN CON VALORES PARA RESULTADOS",72,"DRV72","Verificar el cumplimiento de la normatividad pesquera y acuícola en el país.","DRV72.1","Operativos de control y vigilancia realizados",null,"Eficacia",420,"Operativos de control y vigilancia","Suma","Trimestral",42,126,126,126,"DIRECCIÓN REGIONAL VILLAVICENCIO","Humanos, Físicos, Financieros, Tecnológicos"]
[]
[]
[]
[null,"ELABORÓ ","REVISÓ","APROBÓ",null,null,null,null,"CONTROL DE CAMBIOS"]
[null,"Omar Alejandro Peña Gómez\nContratista de Planeación","Alexandra López Rodríguez\nProfesional Especializado Grado 14\ncon Funciones de Planeación","Comité Institucional de Desarrollo Administrativo",null,null,null,null,"VERSIÓN","FECHA","DESCRIPCIÓN DE LA MODIFICACIÓN"]
[null,null,null,null,null,null,null,null,1,{"$f":"+'PA 2018_INSTITUCIONAL'!I76","v":"Enero 31 de 2018"},"• Primera Versión del Plan vigencia 2018"]
[null,null,null,null,null,null,null,null,2,"Agosto 31 de 2018","• Se modificaron metas anuales del Plan de Acción, especificamente de la DRB y DRBG, y el proceso de Gestión de Inspección y Vigilancia."]
[]
[]
[]
[]
[]
[]
[]
[]
[]
[]
[]
[]
[]
[]
[]
[]
[]
[]
[]
[]
[]
[]
[]
[]
[]
[]
[]
[]
[]
[]
[]
[null,"DIMENSIONES MIPG"]
[null,"1. TALENTO HUMANO"]
[null,"2. DIRECCIONAMIENTO ESTRATÉGICO Y PLANEACIÓN"]
[null,"3. GESTIÓN CON VALORES PARA RESULTADOS"]
[null,"4. EVALUACIÓN DE RESULTADOS"]
[null,"5. INFORMACIÓN Y COMUNICACIÓN"]
[null,"6. GESTIÓN DEL CONOCIMIENTO Y LA INNOVACIÓN"]
[null,"7. CONTROL INTERNO"]
[]
[null,"OBJETIVOS ESTRATTÉGICOS"]
[null,"1.  Lograr el aprovechamiento eficiente y sostenible de los recursos pesqueros y el desarrollo de la acuicultura en el territorio nacional"]
[null,"2.  Actualizar  e  implementar  medidas  de  administración  y  fomento  para  el  aprovechamiento  y    el desarrollo  productivo  sostenible  de  la  actividad  pesquera  y  de  la  acuicultura,  acordes  con  las necesidades y marcos legales sectoriales y nacionales actuales, en el territorio nacional "]
[null,"3.  Lograr la aplicación de las medidas de ordenación por parte de la comunidad para el desarrollo de la actividad  pesquera y de la acuicultura en el territorio nacional "]
[null,"4.  Establecer canales que faciliten el acceso de los usuarios a los programas e información de interés \nde la entidad y promuevan la participación ciudadana en la gestión misional"]
[null,"5.  Gestionar el desarrollo integral del Talento Humano de la entidad"]
[null,"6.  Fortalecer  la  institucionalidad  de la  entidad  para  aumentar  la  operatividad  de  los  procesos  de apoyo a la gestión de la entidad"]
[null,"7. Programar,  controlar  y  registrar  las  operaciones  financieras  y  contractuales  de  la  entidad  para garantizar el cumplimiento de la misión de la entidad"]
[]
[null,"PROCESOS","TIPO ANUALIZACIÓN","CATEGORÍA INDICADOR","UNIDAD DE MEDIDA","PERIODICIDAD"]
[null,"DIRECCIONAMIENTO ESTRATÉGICO ","Incremental","Eficacia","Cantidad","Mensual"]
[null,"MEJORA CONTINUA ","Suma","Eficiencia","Porcentaje","Bimestral"]
[null,"COMUNICACIÓN ESTRATÉGICA ","Constante","Efectividad",null,"Trimestral"]
[null,"GESTIÓN DE LA INFORMACIÓN Y GENERACIÓN DEL CONOCIMIENTO ","Decreciente",null,null,"Cuatrimestral"]
[null,"GESTIÓN DE LA ADMINISTRACIÓN Y FOMENTO ",null,null,null,"Semestral"]
[null,"GESTIÓN DE LA INSPECCIÓN Y VIGILANCIA ",null,null,null,"Anual"]
[null,"ATENCIÓN AL CIUDADANO "]
[null,"GESTIÓN DEL TALENTO HUMANO "]
[null,"GESTIÓN DE CONTRATACIÓN "]
[null,"GESTIÓN FINANCIERA "]
[null,"GESTIÓN JURÍDICA "]
[null,"GESTIÓN ADMINISTRATIVA "]
[null,"GESTIÓN SERVICIOS DE TICS"]
[null,"GESTIÓN DOCUMENTAL "]
[null,"CONTROL INTERNO LA GESTIÓN  "]
[null,"GESTIÓN DE CONTROL INTERNO DISCIPLINARIO "]
[null,"DIRECCIÓN REGIONAL BARRANCA","BARRANCA"]
[null,"DIRECCIÓN REGIONAL BARRANQUILLA","BARRANQUILLA"]
[null,"DIRECCIÓN REGIONAL BOGOTÁ","BOGOTÁ"]
[null,"DIRECCIÓN REGIONAL CALI","CALI"]
[null,"DIRECCIÓN REGIONAL MAGANGUÉ","MAGANGUÉ"]
[null,"DIRECCIÓN REGIONAL MEDELLÍN","MEDELLÍN"]
[null,"DIRECCIÓN REGIONAL VILLAVICENCIO","VILLAVICENCIO"]